{"text_format":"1","workbook":"xlsx","n_sheets":5,"sheets":["Données","Poule de 6","Tours de jeu","Affiche_des_tours","Saisie FFB"],"not_rendered":{"charts":0,"images":2,"macros":0,"external_links":0,"defined_names":49,"comments":2,"pivot_tables":0},"unopened":[],"bounds":{"document_bytes":16777216,"sheet_cells":100000,"rows_first":2000,"rows_last":500,"rows_between":2000,"halvings":0,"cell_chars":16384,"cell_head_chars":4096},"cells_cut":0,"cells_raw":0,"read":"whole","date_system":"1900"}

{"sheet":"Données","index":0,"n_rows":520,"n_cols":13,"rows_kept":520,"cut":false,"hidden":true,"merged":[]}
["Compétition","Mode de jeu","Catégorie",null,"cdbe","Licence",null,null,null,"Clubs (sans espaces)"]
["Tour qualificatif - T1","Libre","Nationale 1",null,"Nom joueur","Club","Licence",null,"ARGENCES BILLARD CLUB             ",{"$f":"TRIM(I2)","v":"ARGENCES BILLARD CLUB"},"***","Place de la République","14370   ARGENCES"]
["Tour qualificatif - T2","Bande","Nationale 2",null,"Joueur blanc","Sans","Sans",null,"ASSUN BILLARD",{"$f":"TRIM(I3)","v":"ASSUN BILLARD"},"Le clos Moisson","325, allée des Avoineries","50460   URVILLE - NACQUEVILLE"]
["Tour qualificatif - T3","3 bandes","Nationale 3",null,"ADNET FABRICE","BILLARD AMICAL CLUB LOVERIEN","017652Y",null,"BILLARD AMICAL CLUB LOVERIEN      ","BILLARD AMICAL CLUB LOVERIEN","***","3, rue Saint Jean","27400   LOUVIERS"]
["Tour qualificatif - T4","4 billes","Régionale",null,"AHAMD ABDUZALIL","BILLARD CLUB OSSELIEN","134671R",null,"BILLARD CLUB ANDELYSIEN           ","BILLARD CLUB ANDELYSIEN","***","3 et 5, rue Ste Clotide","27700   LES ANDELYS"]
["Finale de Comité","Cadre","Régionale 1",null,"ALEXANDRE JACQUES","BILLARD CLUB SOTTEVILLAIS","017869H",null,"BILLARD CLUB CANY BARVILLE        ","BILLARD CLUB CANY BARVILLE","Complexe sportif Sporticaux","Route de Veulettes","76450   CANY - BARVILLE"]
["Finale de Ligue",null,"Régionale 2",null,"ALIA AHMED","BILLARD CLUB DE MAROMME","166242Y",null,"BILLARD CLUB CORMELLOIS           ","BILLARD CLUB CORMELLOIS","Halle des Sports","rue de la Pagnolée","14123   CORMELLES LE ROYAL"]
["Format billard",null,"Régionale 3",null,"ALLART ELYSE","BILLARD CLUB DE SAINT-MARCEL","113094U",null,"BILLARD CLUB DE BERNAY","BILLARD CLUB DE BERNAY","Gymnase Jacques Sébire","Chemin de la Couture","27300   BERNAY"]
["2m80",null,"Régionale 4",null,"ANDRE BERNARD","ASSUN BILLARD","140477Z",null,"BILLARD CLUB DE FECAMP            ","BILLARD CLUB DE FECAMP","***","5, rue Henri Dunant","76400   FECAMP"]
["3m10",null,"Cadets",null,"ANTEM ANTOINE","BILLARD CLUB DE LA SAUSSAYE","017606E",null,"BILLARD CLUB DE LA SAUSSAYE       ","BILLARD CLUB DE LA SAUSSAYE","Le Mille Club","rue Lesage  - Maille","27370   LA SAUSSAYE"]
["2m40 pc",null,"Juniors",null,"ARGENTIN JEAN LUC","BILLARD CLUB DE FECAMP","137351T",null,"BILLARD CLUB DE MAROMME","BILLARD CLUB DE MAROMME","***","4, rue Jacquard","76150   MAROMME"]
["2m60 pc",null,"Féminines",null,"ARRIVE JEAN LUC","BILLARD CLUB DE LA SAUSSAYE","100560S",null,"BILLARD CLUB DE SAINT NICOLAS     ","BILLARD CLUB DE SAINT NICOLAS","***","93, rue Laurent Lefèbvre","76510   SAINT NICOLAS D'ALIERMONT"]
["2m60 gc",null,null,null,"AUBE ALAIN","BILLARD CLUB DE MAROMME","168020F",null,"BILLARD CLUB DE SAINT-MARCEL      ","BILLARD CLUB DE SAINT-MARCEL","Espace Saint Exupéry","2, rue Jules Ferry","27950   SAINT MARCEL"]
["2m80 pc","Forfaits",null,null,"AUBERT DANIEL","BILLARD CLUB ANDELYSIEN","131880I",null,"BILLARD CLUB EBROICIEN            ","BILLARD CLUB EBROICIEN","Maison des Jeunes et de la Cullture","1, avenue Aristide Briand","27000   EVREUX"]
["2m80 gc","Excusé",null,null,"AUBERT JEAN PAUL","BILLARD CLUB ANDELYSIEN","129110U",null,"BILLARD CLUB GAILLONNAIS          ","BILLARD CLUB GAILLONNAIS","Centre des Arts Contemporains","Allée de l'Ermitage","27600   GAILLON"]
["3m10 pc","Non excusé",null,null,"AZIZIAN RICHARD","BILLARD CLUB DE SAINT NICOLAS","017803T",null,"BILLARD CLUB LEXOVIEN             ","BILLARD CLUB LEXOVIEN","Maison des Jeunes et de la Cullture","13, boulevard Louis Pasteur","14100   LISIEUX"]
["3m10 gc",null,null,null,"BACHELET KARINE","BILLARD CLUB CANY BARVILLE","171761X",null,"BILLARD CLUB OSSELIEN             ","BILLARD CLUB OSSELIEN","***","8, rue du manoir","76350   OISSEL"]
[null,null,null,null,"BAERT PHILIPPE","CLUB ECOLE HAVRAIS DE BILLARD","172578K",null,"BILLARD CLUB PACEEN               ","BILLARD CLUB PACEEN","***","12, rue Montferrand","27120   PACY SUR EURE"]
["Points",null,null,null,"BAILLY NICOLAS","BILLARD AMICAL CLUB LOVERIEN","129095F",null,"BILLARD CLUB SOTTEVILLAIS         ","BILLARD CLUB SOTTEVILLAIS","***","123, rue Béranger","76300   SOTTEVILLE LES ROUEN"]
[2,null,null,null,"BAIS PHILIPPE","ROUEN BILLARD CLUB","153013T",null,"CLUB ECOLE HAVRAIS DE BILLARD     ","CLUB ECOLE HAVRAIS DE BILLARD","***","76, rue des Briquetiers","76600   LE HAVRE"]
[1,null,null,null,"BARBIER JEAN LUC","BILLARD CLUB EBROICIEN","017571V",null,"PATRONAGE LAIQUE ARGENTAN         ","PATRONAGE LAIQUE ARGENTAN","Ecole Pierre Curie","Route de Urou","61200   ARGENTAN"]
[0,null,null,null,"BASSIERE JEAN PIERRE","BILLARD CLUB DE BERNAY","154338J",null,"ROUEN BILLARD CLUB                ","ROUEN BILLARD CLUB","Espace de la Petite Bouverie","Allée Pierre de Coubertin","76100   ROUEN"]
[null,null,null,null,"BATAILLE VINCENT","ROUEN BILLARD CLUB","017754W"]
[null,null,null,null,"BATTE JEAN MARC","BILLARD CLUB DE SAINT NICOLAS","017531H"]
[null,null,null,null,"BAUDER GILBERT","BILLARD CLUB CANY BARVILLE","017689J"]
[null,null,null,null,"BAVILLE SYLVAIN","BILLARD CLUB SOTTEVILLAIS","152619Q"]
[null,null,null,null,"BAZAUD FRANCK","ROUEN BILLARD CLUB","122758M"]
[null,null,null,null,"BEAUGRAND CHRISTIAN","BILLARD CLUB CANY BARVILLE","161679N"]
[null,null,null,null,"BEAUVAIS JEAN FRANCOIS","CLUB ECOLE HAVRAIS DE BILLARD","140954I"]
[null,null,null,null,"BEGUIN CLAUDE","BILLARD CLUB ANDELYSIEN","150707M"]
[null,null,null,null,"BELDAME DANIEL","BILLARD CLUB DE LA SAUSSAYE","112270C"]
[null,null,null,null,"BELINY GILLES","BILLARD CLUB DE LA SAUSSAYE","017706A"]
[null,null,null,null,"BENDJEMILA TOFIR","ROUEN BILLARD CLUB","017734C"]
[null,null,null,null,"BERTRAND MICHEL","BILLARD CLUB SOTTEVILLAIS","142970W"]
[null,null,null,null,"BESLIN DANIEL","BILLARD CLUB CORMELLOIS","172500A"]
[null,null,null,null,"BETON DOMINIQUE","BILLARD AMICAL CLUB LOVERIEN","017629B"]
[null,null,null,null,"BETON VALERIE","BILLARD AMICAL CLUB LOVERIEN","147263T"]
[null,null,null,null,"BEZARD GEORGES","BILLARD CLUB DE LA SAUSSAYE","137339H"]
[null,null,null,null,"BEZNOSUC MARIE JOSE","BILLARD CLUB DE BERNAY","169239F"]
[null,null,null,null,"BIANCHINI JEAN ROBERT","CLUB ECOLE HAVRAIS DE BILLARD","106781Z"]
[null,null,null,null,"BIDAULT ALAIN","ROUEN BILLARD CLUB","160279R"]
[null,null,null,null,"BIENAIME ERIC","BILLARD CLUB DE MAROMME","162881V"]
[null,null,null,null,"BIETTE CLAUDE","BILLARD CLUB LEXOVIEN","017497Z"]
[null,null,null,null,"BILLARD DAVID","BILLARD CLUB CORMELLOIS","017465T"]
[null,null,null,null,"BLIN ARMEL","BILLARD CLUB ANDELYSIEN","169474L"]
[null,null,null,null,"BLONDEL JEAN THIERRY","CLUB ECOLE HAVRAIS DE BILLARD","144155L"]
[null,null,null,null,"BOCQUAIN JEAN PIERRE","CLUB ECOLE HAVRAIS DE BILLARD","112554A"]
[null,null,null,null,"BOGO JACQUES","BILLARD CLUB LEXOVIEN","138293Z"]
[null,null,null,null,"BOITARD MARC","BILLARD CLUB DE MAROMME","136732Y"]
[null,null,null,null,"BONHOMME ERIC","CLUB ECOLE HAVRAIS DE BILLARD","144156M"]
[null,null,null,null,"BOTREL DAVID","BILLARD CLUB DE MAROMME","156426D"]
[null,null,null,null,"BOUGOUIN JEAN MICHEL","BILLARD CLUB CORMELLOIS","149537Q"]
[null,null,null,null,"BOULIER ALAIN","BILLARD CLUB DE SAINT-MARCEL","152578W"]
[null,null,null,null,"BOURGET ALAIN","BILLARD CLUB CORMELLOIS","017466U"]
[null,null,null,null,"BOUTILLOT CHRISTIAN","BILLARD CLUB DE LA SAUSSAYE","163734X"]
[null,null,null,null,"BOUTIN GILLES","BILLARD CLUB DE MAROMME","017457L"]
[null,null,null,null,"BOUTIN GUY","ROUEN BILLARD CLUB","124623F"]
[null,null,null,null,"BOUTTIER JACKY","ROUEN BILLARD CLUB","153690E"]
[null,null,null,null,"BOUVIER BERTRAND","BILLARD CLUB CORMELLOIS","149399Q"]
[null,null,null,null,"BOUVIER GUILLAUME","BILLARD CLUB CORMELLOIS","149400R"]
[null,null,null,null,"BOUXIN ERIC","BILLARD CLUB DE MAROMME","167390W"]
[null,null,null,null,"BRAEMS FLORIAN","BILLARD CLUB CANY BARVILLE","160931A"]
[null,null,null,null,"BREUGNON BERNARD","BILLARD CLUB GAILLONNAIS","167321W"]
[null,null,null,null,"BROWANG CLAUDE","BILLARD CLUB GAILLONNAIS","107038W"]
[null,null,null,null,"BROWANG ERIC","BILLARD CLUB DE LA SAUSSAYE","170924M"]
[null,null,null,null,"BROWANG JEROME","BILLARD CLUB GAILLONNAIS","107039X"]
[null,null,null,null,"BROWANG MICHEL","BILLARD CLUB GAILLONNAIS","107040Y"]
[null,null,null,null,"BRULARD DANIEL","BILLARD AMICAL CLUB LOVERIEN","017658E"]
[null,null,null,null,"BRUNET ANDRE","BILLARD CLUB LEXOVIEN","017746O"]
[null,null,null,null,"BUDIN BERNARD","ASSUN BILLARD","163871W"]
[null,null,null,null,"BURGOT FRANCINE","BILLARD CLUB SOTTEVILLAIS","169893R"]
[null,null,null,null,"BURGOT FRANCOIS","BILLARD CLUB SOTTEVILLAIS","169892Q"]
[null,null,null,null,"BUSTOS MIGUEL ANGEL","ROUEN BILLARD CLUB","171767D"]
[null,null,null,null,"BUTELET JEAN PAUL","BILLARD CLUB DE LA SAUSSAYE","017610I"]
[null,null,null,null,"CADINOT SEBASTIEN","BILLARD CLUB OSSELIEN","158947T"]
[null,null,null,null,"CAJEAN PHILIPPE","BILLARD CLUB EBROICIEN","010634A"]
[null,null,null,null,"CALLENS TIMEO","BILLARD CLUB CANY BARVILLE","166291B"]
[null,null,null,null,"CARDON JEAN CLAUDE","BILLARD CLUB SOTTEVILLAIS","017542S"]
[null,null,null,null,"CARLIER ALAIN","BILLARD CLUB ANDELYSIEN","153754Z"]
[null,null,null,null,"CARPENTIER CHRISTIAN","BILLARD CLUB PACEEN","135579P"]
[null,null,null,null,"CARPENTIER DIDIER","BILLARD CLUB DE FECAMP","152654D"]
[null,null,null,null,"CARRE PIERRE","BILLARD CLUB CORMELLOIS","017467V"]
[null,null,null,null,"CAUWET NOEL","ROUEN BILLARD CLUB","104533N"]
[null,null,null,null,"CAZAUX JEAN MARC","CLUB ECOLE HAVRAIS DE BILLARD","017643P"]
[null,null,null,null,"CAZEAUBON SERGE","CLUB ECOLE HAVRAIS DE BILLARD","167848T"]
[null,null,null,null,"CHAGNOT JEAN CLAUDE","BILLARD CLUB OSSELIEN","017621T"]
[null,null,null,null,"CHALVET PATRICE","BILLARD CLUB DE SAINT-MARCEL","018027J"]
[null,null,null,null,"CHAMP FRANCOIS","ROUEN BILLARD CLUB","159430T"]
[null,null,null,null,"CHANSON PIERRE","ASSUN BILLARD","111053H"]
[null,null,null,null,"CHAPLEAU FRANCOIS","CLUB ECOLE HAVRAIS DE BILLARD","137817R"]
[null,null,null,null,"CHARBONNIER PHILIPPE","BILLARD CLUB CANY BARVILLE","127340S"]
[null,null,null,null,"CHARRON EDITH","ARGENCES BILLARD CLUB","169334J"]
[null,null,null,null,"CHESNEAU JACQUES","BILLARD CLUB DE SAINT-MARCEL","133832K"]
[null,null,null,null,"CHESNEL MATHIEU","BILLARD CLUB DE SAINT NICOLAS","017896I"]
[null,null,null,null,"CHESNEL PATRICK","BILLARD CLUB DE SAINT NICOLAS","116629T"]
[null,null,null,null,"CHEVALIER PHILIPPE","BILLARD CLUB DE BERNAY","126208E"]
[null,null,null,null,"CHEVON NOA","ROUEN BILLARD CLUB","168778E"]
[null,null,null,null,"CHOLLET LIONEL","BILLARD CLUB DE LA SAUSSAYE","107240Q"]
[null,null,null,null,"CHOQUART PIERRE","BILLARD CLUB SOTTEVILLAIS","133876C"]
[null,null,null,null,"CHOUPAUT BRUNO","BILLARD CLUB SOTTEVILLAIS","151711D"]
[null,null,null,null,"CLEMENT FABRICE","BILLARD CLUB DE MAROMME","152233W"]
[null,null,null,null,"COCHARD PATRICK","BILLARD AMICAL CLUB LOVERIEN","145961X"]
[null,null,null,null,"COCY GILLES","CLUB ECOLE HAVRAIS DE BILLARD","017709D"]
[null,null,null,null,"COLINET JEAN LUC","BILLARD CLUB ANDELYSIEN","153098L"]
[null,null,null,null,"COLLE GREGORY","BILLARD CLUB OSSELIEN","017823N"]
[null,null,null,null,"COLLE CONTE ILANE","BILLARD CLUB SOTTEVILLAIS","172024H"]
[null,null,null,null,"COLLE CONTE LUDOVIC","BILLARD CLUB SOTTEVILLAIS","172023G"]
[null,null,null,null,"COLLERY GABRIEL","BILLARD CLUB DE BERNAY","172379T"]
[null,null,null,null,"COLOMER ALAIN","BILLARD CLUB CORMELLOIS","172501B"]
[null,null,null,null,"CORNO YVES","BILLARD CLUB PACEEN","142307J"]
[null,null,null,null,"COTTEN JEAN PIERRE","ROUEN BILLARD CLUB","017516S"]
[null,null,null,null,"COUCHOT BERNARD","BILLARD CLUB CORMELLOIS","112010C"]
[null,null,null,null,"COURTOIS PIERRE","BILLARD CLUB DE MAROMME","168350P"]
[null,null,null,null,"CUVIER GILLES","BILLARD CLUB CANY BARVILLE","120322U"]
[null,null,null,null,"CUVILLIEZ FRANCOISE","BILLARD CLUB DE FECAMP","150560C"]
[null,null,null,null,"DAIGLE MICHEL","BILLARD CLUB CORMELLOIS","145242G"]
[null,null,null,null,"DAIREAUX SERGE","BILLARD CLUB EBROICIEN","106824Q"]
[null,null,null,null,"DAON OLIVIER","ARGENCES BILLARD CLUB","169727L"]
[null,null,null,null,"DAUBEUF THIERRY","CLUB ECOLE HAVRAIS DE BILLARD","170708C"]
[null,null,null,null,"DAUSSY JEAN CLAUDE","BILLARD CLUB DE FECAMP","148177M"]
[null,null,null,null,"DAUTRY ANNICK","BILLARD AMICAL CLUB LOVERIEN","106284W"]
[null,null,null,null,"DAVITTI CLAUDE","BILLARD CLUB OSSELIEN","144074I"]
[null,null,null,null,"DAVOINE BRUNO","ROUEN BILLARD CLUB","017482K"]
[null,null,null,null,"DE TOFFOLI JEAN ANTOINE","BILLARD CLUB GAILLONNAIS","017476E"]
[null,null,null,null,"DEFREVILLE ANTHONY","BILLARD CLUB DE MAROMME","157510G"]
[null,null,null,null,"DELALANDRE FRANCOIS","BILLARD CLUB CANY BARVILLE","168981A"]
[null,null,null,null,"DELALANDRE VERONIQUE","BILLARD CLUB CANY BARVILLE","168982B"]
[null,null,null,null,"DELALONDRE MAX","BILLARD AMICAL CLUB LOVERIEN","110690I"]
[null,null,null,null,"DELAMARRE ERIC","BILLARD AMICAL CLUB LOVERIEN","129114Y"]
[null,null,null,null,"DELARUE GILLES","BILLARD CLUB EBROICIEN","169557B"]
[null,null,null,null,"DELARUE JEAN FRANCOIS","BILLARD CLUB OSSELIEN","165274W"]
[null,null,null,null,"DELIGNY JEAN CLAUDE","BILLARD CLUB DE FECAMP","100518C"]
[null,null,null,null,"DEMAREST MARCEL","BILLARD CLUB ANDELYSIEN","170125T"]
[null,null,null,null,"DEMERE CHRISTIAN","CLUB ECOLE HAVRAIS DE BILLARD","124007N"]
[null,null,null,null,"DEMOTTAIS JEAN JACQUES","BILLARD CLUB DE MAROMME","165991A"]
[null,null,null,null,"DENZEN LELAIDIER DOLCHE","BILLARD CLUB CORMELLOIS","168817X"]
[null,null,null,null,"DEPARIS PATRICK","BILLARD CLUB DE SAINT NICOLAS","142823F"]
[null,null,null,null,"DERONGS DANIEL","BILLARD CLUB ANDELYSIEN","147139J"]
[null,null,null,null,"DESCHAMPS MICHEL","BILLARD CLUB DE BERNAY","172071J"]
[null,null,null,null,"DESHAYES YANN","BILLARD AMICAL CLUB LOVERIEN","172018B"]
[null,null,null,null,"DESLANDES WILFRIED","CLUB DE POOL VERNON","147559Q"]
[null,null,null,null,"DESMARES DOMINIQUE","BILLARD CLUB DE MAROMME","165839K"]
[null,null,null,null,"DESOUDIN CEDRIC","BILLARD CLUB DE MAROMME","157256F"]
[null,null,null,null,"DESSERRE ALEXANDRE","BILLARD CLUB DE MAROMME","136733Z"]
[null,null,null,null,"DEZETANT MARCEL","BILLARD CLUB DE LA SAUSSAYE","017627Z"]
[null,null,null,null,"DIAGA RADJOU VINCENT","BILLARD CLUB CANY BARVILLE","109583T"]
[null,null,null,null,"DOMENGER JEAN FRANCOIS","CLUB ECOLE HAVRAIS DE BILLARD","164326Q"]
[null,null,null,null,"DONNEGER ABEL","ROUEN BILLARD CLUB","017790G"]
[null,null,null,null,"DROGUE GILLES","ASSUN BILLARD","138388Q"]
[null,null,null,null,"DU BOUCHAGE MICKAEL","BILLARD CLUB CORMELLOIS","126212I"]
[null,null,null,null,"DUBOIS THIERRY","ARGENCES BILLARD CLUB","169451L"]
[null,null,null,null,"DUBOISREVENU GERALD","ARGENCES BILLARD CLUB","134693N"]
[null,null,null,null,"DUBUC GUILLAUME","BILLARD CLUB DE MAROMME","166097Q"]
[null,null,null,null,"DUBUC LOUIS","BILLARD CLUB DE MAROMME","166098R"]
[null,null,null,null,"DUCATHE PHILIPPE","BILLARD CLUB CANY BARVILLE","164840Z"]
[null,null,null,null,"DUCROCQ DIDIER","BILLARD CLUB DE LA SAUSSAYE","145451H"]
[null,null,null,null,"DUMARTIN BERTRAND","BILLARD AMICAL CLUB LOVERIEN","163172L"]
[null,null,null,null,"DUMOND PIERRE","BILLARD CLUB DE SAINT-MARCEL","136046O"]
[null,null,null,null,"DUONG KHENN","BILLARD AMICAL CLUB LOVERIEN","161710X"]
[null,null,null,null,"DUPONCHEL ALAIN","CLUB ECOLE HAVRAIS DE BILLARD","112556C"]
[null,null,null,null,"DUPRE PATRICK","BILLARD CLUB CANY BARVILLE","100586S"]
[null,null,null,null,"DURANTI GILLES","CLUB ECOLE HAVRAIS DE BILLARD","138224I"]
[null,null,null,null,"DURDEK ALAIN","BILLARD CLUB CORMELLOIS","168816W"]
[null,null,null,null,"DUTHEIL JACQUES","BILLARD CLUB SOTTEVILLAIS","138165B"]
[null,null,null,null,"DUTHIL JEAN","BILLARD CLUB SOTTEVILLAIS","017820K"]
[null,null,null,null,"DUTOT DAMIEN","BILLARD CLUB DE FECAMP","142404C"]
[null,null,null,null,"DUTOT GERALD","CLUB ECOLE HAVRAIS DE BILLARD","145692O"]
[null,null,null,null,"DUVAL BERNARD","CLUB ECOLE HAVRAIS DE BILLARD","140957L"]
[null,null,null,null,"DUVAL JEAN PAUL","BILLARD CLUB DE FECAMP","157684W"]
[null,null,null,null,"DUVAL LUDOVIC","BILLARD CLUB EBROICIEN","159869W"]
[null,null,null,null,"DUVAL MICHEL","BILLARD CLUB DE SAINT NICOLAS","146926C"]
[null,null,null,null,"DUVAL RENE","BILLARD CLUB CORMELLOIS","129045H"]
[null,null,null,null,"ECOURTEMER STEPHANE","ASSUN BILLARD","018131J"]
[null,null,null,null,"EICHHOLTZER CLAUDE","BILLARD CLUB DE FECAMP","125798K"]
[null,null,null,null,"ELIE JOANNES","ARGENCES BILLARD CLUB","142933L"]
[null,null,null,null,"ERLENBACH FRANCOIS","CLUB ECOLE HAVRAIS DE BILLARD","155194P"]
[null,null,null,null,"ERONTE MICHEL","BILLARD CLUB SOTTEVILLAIS","017986U"]
[null,null,null,null,"ESLIER GUY","BILLARD CLUB CORMELLOIS","112009B"]
[null,null,null,null,"ESTRIER JEAN CLAUDE","CLUB ECOLE HAVRAIS DE BILLARD","017770M"]
[null,null,null,null,"EUDIER DIDIER","CLUB ECOLE HAVRAIS DE BILLARD","159595Y"]
[null,null,null,null,"EUDIER MICHEL","PATRONAGE LAIQUE ARGENTAN","017713H"]
[null,null,null,null,"EVRARD JAMES","BILLARD CLUB DE LA SAUSSAYE","157076K"]
[null,null,null,null,"EVRARD LYLIAN","BILLARD CLUB DE LA SAUSSAYE","153268W"]
[null,null,null,null,"FACQUET SUKMA","ROUEN BILLARD CLUB","152234X"]
[null,null,null,null,"FACQUET VINCENT","ROUEN BILLARD CLUB","013085H"]
[null,null,null,null,"FAISANT RAYMOND","ROUEN BILLARD CLUB","012137V"]
[null,null,null,null,"FERNANDEZ ROBIN","BILLARD CLUB CANY BARVILLE","141784G"]
[null,null,null,null,"FERRON JEAN MARC","BILLARD CLUB DE BERNAY","164847G"]
[null,null,null,null,"FESTE MICHEL","ARGENCES BILLARD CLUB","169338N"]
[null,null,null,null,"FLEURY YVES","BILLARD CLUB CORMELLOIS","100521F"]
[null,null,null,null,"FONTAINE YANN","ROUEN BILLARD CLUB","131886O"]
[null,null,null,null,"FOSSEY MATHIEU","BILLARD CLUB PACEEN","168801E"]
[null,null,null,null,"FOUCRET STEPHANE","BILLARD CLUB DE SAINT-MARCEL","104154Y"]
[null,null,null,null,"FOURNIAL CHRISTIAN","BILLARD CLUB ANDELYSIEN","150542H"]
[null,null,null,null,"FRANCOIS RENE","BILLARD CLUB SOTTEVILLAIS","108288Y"]
[null,null,null,null,"FRANGNE PHILIPPE","BILLARD CLUB DE MAROMME","165902D"]
[null,null,null,null,"FREGER XAVIER","BILLARD CLUB DE FECAMP","168691K"]
[null,null,null,null,"GALAN JEAN CLAUDE","BILLARD CLUB ANDELYSIEN","142631V"]
[null,null,null,null,"GARO NAEL","BILLARD CLUB PACEEN","156465W"]
[null,null,null,null,"GARREAU CYRIL","BILLARD AMICAL CLUB LOVERIEN","147667H"]
[null,null,null,null,"GASCHY DAMIEN","BILLARD AMICAL CLUB LOVERIEN","160307X"]
[null,null,null,null,"GAUTIER ALAIN","BILLARD CLUB CORMELLOIS","169561F"]
[null,null,null,null,"GERMAIN CYRILLE","BILLARD CLUB DE BERNAY","017461P"]
[null,null,null,null,"GERVAIS PHILIPPE","BILLARD CLUB CANY BARVILLE","152579X"]
[null,null,null,null,"GESTIN JACQUES","BILLARD CLUB LEXOVIEN","154536Z"]
[null,null,null,null,"GEYER SERGE","BILLARD CLUB DE SAINT-MARCEL","017687H"]
[null,null,null,null,"GILLE PHILIPPE","BILLARD CLUB DE FECAMP","102207B"]
[null,null,null,null,"GILLOT MARCEL","BILLARD AMICAL CLUB LOVERIEN","013242I"]
[null,null,null,null,"GLINEL MORTREUIL CLAUDE","BILLARD CLUB DE MAROMME","165097D"]
[null,null,null,null,"GNOCCHI GIANPAOLO","BILLARD CLUB SOTTEVILLAIS","124614W"]
[null,null,null,null,"GOARNISSON VALENTIN","ROUEN BILLARD CLUB","162096R"]
[null,null,null,null,"GODILLE SYLVAIN","BILLARD CLUB CORMELLOIS","126213J"]
[null,null,null,null,"GONZALES JOSE","BILLARD CLUB CORMELLOIS","107057P"]
[null,null,null,null,"GOREGUES LOIC","ROUEN BILLARD CLUB","143286A"]
[null,null,null,null,"GOSNON OLIVIER","ARGENCES BILLARD CLUB","127187V"]
[null,null,null,null,"GOUDIER DANIELLE","BILLARD CLUB LEXOVIEN","137446K"]
[null,null,null,null,"GOUGEAUD MICHEL","CLUB ECOLE HAVRAIS DE BILLARD","137819T"]
[null,null,null,null,"GOUSSETIS GEORGES","ROUEN BILLARD CLUB","112008A"]
[null,null,null,null,"GOUSSIN JEAN PAUL","CLUB ECOLE HAVRAIS DE BILLARD","018086Q"]
[null,null,null,null,"GRANDSIRE ALAIN","BILLARD CLUB OSSELIEN","158946S"]
[null,null,null,null,"GRASSIN MICHEL","BILLARD CLUB EBROICIEN","143290E"]
[null,null,null,null,"GRENET LOUIS","BILLARD CLUB DE SAINT NICOLAS","141991F"]
[null,null,null,null,"GRENU GUY","BILLARD CLUB SOTTEVILLAIS","156138Q"]
[null,null,null,null,"GRETILLAT XAVIER","BILLARD CLUB OSSELIEN","138447X"]
[null,null,null,null,"GROSDEMANGE JULIEN","BILLARD CLUB DE SAINT NICOLAS","144620I"]
[null,null,null,null,"GUERET GERARD","BILLARD CLUB SOTTEVILLAIS","018138Q"]
[null,null,null,null,"GUERIN DAVID","ROUEN BILLARD CLUB","017939Z"]
[null,null,null,null,"GUEROULT DOMINIQUE","BILLARD CLUB SOTTEVILLAIS","157731X"]
[null,null,null,null,"GUEROUT JEAN PIERRE","BILLARD CLUB SOTTEVILLAIS","156477J"]
[null,null,null,null,"GUIGNON ERIC","BILLARD CLUB DE SAINT NICOLAS","017536M"]
[null,null,null,null,"GUIGNON JIM","BILLARD CLUB DE SAINT NICOLAS","017537N"]
[null,null,null,null,"GUILLAUME MICHEL","BILLARD CLUB SOTTEVILLAIS","169779S"]
[null,null,null,null,"GUINCETRE FRANCOIS","CLUB ECOLE HAVRAIS DE BILLARD","143613P"]
[null,null,null,null,"GUYADER ERWAN","BILLARD CLUB EBROICIEN","152484T"]
[null,null,null,null,"GUYADER GAEL","BILLARD CLUB EBROICIEN","017653Z"]
[null,null,null,null,"HABRAN JEAN PIERRE","BILLARD CLUB DE BERNAY","163902E"]
[null,null,null,null,"HAFED LAURENT","BILLARD CLUB CORMELLOIS","116626Q"]
[null,null,null,null,"HAQUIN HERVE","ASSUN BILLARD","147303M"]
[null,null,null,null,"HAUBERDON RENE","BILLARD CLUB DE FECAMP","140340S"]
[null,null,null,null,"HAUCK MICHEL","BILLARD CLUB CANY BARVILLE","125710A"]
[null,null,null,null,"HAVEZ DAVID","BILLARD CLUB DE MAROMME","154374Y"]
[null,null,null,null,"HAZART HAMEL GERARD","BILLARD CLUB SOTTEVILLAIS","134863B"]
[null,null,null,null,"HENRY CATHERINE","CLUB ECOLE HAVRAIS DE BILLARD","156840D"]
[null,null,null,null,"HENRY SERGE","CLUB ECOLE HAVRAIS DE BILLARD","017637J"]
[null,null,null,null,"HEQUET JEAN FRANCOIS","BILLARD CLUB ANDELYSIEN","172304M"]
[null,null,null,null,"HIDEE SEBASTIEN","BILLARD CLUB SOTTEVILLAIS","172025J"]
[null,null,null,null,"HOMMET CHARLES","ROUEN BILLARD CLUB","105787T"]
[null,null,null,null,"HONG PHI BANG","BILLARD AMICAL CLUB LOVERIEN","166245B"]
[null,null,null,null,"HORCHOLLES DAVID","BILLARD CLUB GAILLONNAIS","018123B"]
[null,null,null,null,"HOREL CHRISTIAN","BILLARD CLUB CORMELLOIS","106832Y"]
[null,null,null,null,"HUARD SEBASTIEN","BILLARD CLUB DE MAROMME","155987B"]
[null,null,null,null,"HUBERT CLAUDE","ROUEN BILLARD CLUB","153902K"]
[null,null,null,null,"HUBERT YVON","BILLARD CLUB CANY BARVILLE","161713A"]
[null,null,null,null,"HUE JEAN","BILLARD CLUB CORMELLOIS","140475X"]
[null,null,null,null,"HUET JEAN LOUIS","CLUB ECOLE HAVRAIS DE BILLARD","145695R"]
[null,null,null,null,"HUGER MICHEL","BILLARD CLUB DE LA SAUSSAYE","017614M"]
[null,null,null,null,"IPPOLITO PASCAL","BILLARD CLUB SOTTEVILLAIS","018041X"]
[null,null,null,null,"JACQ LAURENT","ROUEN BILLARD CLUB","017912Y"]
[null,null,null,null,"JAFFRAY THIERRY","BILLARD CLUB CORMELLOIS","104165J"]
[null,null,null,null,"JAMI M HAMED","BILLARD CLUB SOTTEVILLAIS","168259Q"]
[null,null,null,null,"JAQUINANDI DANIEL","BILLARD CLUB CANY BARVILLE","013391B"]
[null,null,null,null,"JUBLOT DENIS","BILLARD CLUB DE MAROMME","017978M"]
[null,null,null,null,"JUMELIN ALEXIS","ARGENCES BILLARD CLUB","172609T"]
[null,null,null,null,"JUMELIN EMMANUEL","ARGENCES BILLARD CLUB","140473V"]
[null,null,null,null,"KAHOFER ARNIM","BILLARD CLUB OSSELIEN","140034Y"]
[null,null,null,null,"KENZEY PATRICK","BILLARD CLUB EBROICIEN","017485N"]
[null,null,null,null,"LALLEMAND DIDIER","ASSUN BILLARD","017874M"]
[null,null,null,null,"LAMBERT EUDES","PATRONAGE LAIQUE ARGENTAN","140033X"]
[null,null,null,null,"LANGEVIN THIERY","BILLARD CLUB CORMELLOIS","168815V"]
[null,null,null,null,"LANGLOIS CHRISTIAN","CLUB ECOLE HAVRAIS DE BILLARD","018105J"]
[null,null,null,null,"LANIEU JASON","BILLARD CLUB CANY BARVILLE","163789G"]
[null,null,null,null,"LAPERT PATRICK","CLUB DE POOL VERNON","116636A"]
[null,null,null,null,"LAURENT PHILIPPE","BILLARD CLUB SOTTEVILLAIS","112307N"]
[null,null,null,null,"LAURENT VALERY","ROUEN BILLARD CLUB","017732A"]
[null,null,null,null,"LE CAER THIERRY","BILLARD CLUB ANDELYSIEN","129144C"]
[null,null,null,null,"LE MESLE CHRISTOPHE","BILLARD CLUB EBROICIEN","165122F"]
[null,null,null,null,"LE MOULEC ALAIN","CLUB ECOLE HAVRAIS DE BILLARD","135751F"]
[null,null,null,null,"LE MOULEC JOHNNY","CLUB ECOLE HAVRAIS DE BILLARD","135752G"]
[null,null,null,null,"LE RAILLER GERALD","BILLARD CLUB DE SAINT NICOLAS","151478A"]
[null,null,null,null,"LEBEGUE JEAN","ARGENCES BILLARD CLUB","157910R"]
[null,null,null,null,"LEBOUCHER PASCAL","CLUB ECOLE HAVRAIS DE BILLARD","126223T"]
[null,null,null,null,"LEBOURGEOIS PHILIPPE","ROUEN BILLARD CLUB","017763F"]
[null,null,null,null,"LEBRETON ALAIN","BILLARD CLUB LEXOVIEN","013523D"]
[null,null,null,null,"LECANU JEAN MARC","BILLARD CLUB DE LA SAUSSAYE","169320T"]
[null,null,null,null,"LECLERC MARC","BILLARD CLUB PACEEN","165970C"]
[null,null,null,null,"LECOEUR RENEE","BILLARD CLUB DE LA SAUSSAYE","145449F"]
[null,null,null,null,"LECORNE LAURENT","BILLARD CLUB DE SAINT-MARCEL","171962Q"]
[null,null,null,null,"LEDUC PATRICK","BILLARD CLUB CORMELLOIS","142969V"]
[null,null,null,null,"LEDUEY LUDOVIC","BILLARD CLUB DE MAROMME","110509J"]
[null,null,null,null,"LEFEBVRE BERNARD","ROUEN BILLARD CLUB","159458Z"]
[null,null,null,null,"LEFEVRE PHILIPPE","ARGENCES BILLARD CLUB","017875N"]
[null,null,null,null,"LEFEVRE YANNICK","BILLARD CLUB LEXOVIEN","147057V"]
[null,null,null,null,"LEGEMBRE KILLIAN","BILLARD CLUB CANY BARVILLE","171482T"]
[null,null,null,null,"LEGENDRE CEDRIC","ROUEN BILLARD CLUB","011123V"]
[null,null,null,null,"LEGENDRE CHARLES","ROUEN BILLARD CLUB","153994K"]
[null,null,null,null,"LEGENDRE GERARD","BILLARD CLUB DE SAINT NICOLAS","131482A"]
[null,null,null,null,"LEGENDRE NATHAN","ROUEN BILLARD CLUB","148558B"]
[null,null,null,null,"LEGRAND PHILIPPE","BILLARD CLUB CANY BARVILLE","166852L"]
[null,null,null,null,"LEGRET ALEXIAN","BILLARD CLUB CORMELLOIS","144318S"]
[null,null,null,null,"LEHARIVEL DENIS","BILLARD CLUB CORMELLOIS","124649F"]
[null,null,null,null,"LEJEUNE BRUNO","BILLARD CLUB SOTTEVILLAIS","166608W"]
[null,null,null,null,"LELEVRIER MICHEL","BILLARD AMICAL CLUB LOVERIEN","153100N"]
[null,null,null,null,"LELIEVRE ANTOINE","ARGENCES BILLARD CLUB","166141N"]
[null,null,null,null,"LELOIR MICHEL","BILLARD CLUB DE SAINT NICOLAS","017997F"]
[null,null,null,null,"LEMOIGNE PIERRE","BILLARD CLUB PACEEN","127747J"]
[null,null,null,null,"LENOIR JEAN MARC","BILLARD CLUB DE BERNAY","169351C"]
[null,null,null,null,"LEPINAY PIERRE","BILLARD CLUB LEXOVIEN","017597V"]
[null,null,null,null,"LEPLANOIS VIRGINIE","BILLARD CLUB DE BERNAY","169234A"]
[null,null,null,null,"LEPORQ FRANCOIS","CLUB ECOLE HAVRAIS DE BILLARD","131887P"]
[null,null,null,null,"LEPRETRE BERNARD","BILLARD CLUB DE BERNAY","164248F"]
[null,null,null,null,"LEROI JEAN CLAUDE","BILLARD CLUB DE LA SAUSSAYE","147405Y"]
[null,null,null,null,"LESCAN JACQUES","BILLARD CLUB SOTTEVILLAIS","138167D"]
[null,null,null,null,"LESELLIER PASCAL","BILLARD CLUB CORMELLOIS","017786C"]
[null,null,null,null,"LETELLIER GILLES","BILLARD CLUB DE SAINT-MARCEL","172274E"]
[null,null,null,null,"LETULLIER BRUNO","CLUB ECOLE HAVRAIS DE BILLARD","135753H"]
[null,null,null,null,"LEVACHER STEPHANE","BILLARD CLUB DE MAROMME","120314M"]
[null,null,null,null,"LEVIEUX AURELIEN","BILLARD CLUB DE MAROMME","163707S"]
[null,null,null,null,"LEVILLAIN BEURIOT THOMAS","BILLARD CLUB CANY BARVILLE","166696R"]
[null,null,null,null,"LHEUREUX RICHARD","BILLARD CLUB DE LA SAUSSAYE","133458A"]
[null,null,null,null,"LIARD BERNARD","BILLARD CLUB CORMELLOIS","106833Z"]
[null,null,null,null,"LIBERT LOUIS PIERRE","BILLARD CLUB CANY BARVILLE","147566Y"]
[null,null,null,null,"LINGRAND BERNARD","BILLARD CLUB LEXOVIEN","162572J"]
[null,null,null,null,"LOMBARD PATRICK","BILLARD CLUB SOTTEVILLAIS","142975B"]
[null,null,null,null,"LORGET EMMANUEL","BILLARD CLUB OSSELIEN","144781N"]
[null,null,null,null,"LORIN JIMMY","ROUEN BILLARD CLUB","011876U"]
[null,null,null,null,"LOUIS ANDRE","BILLARD CLUB DE SAINT-MARCEL","171961P"]
[null,null,null,null,"LOURSEL ALAIN","ROUEN BILLARD CLUB","017731Z"]
[null,null,null,null,"LOZAC OLIVIER","BILLARD CLUB CORMELLOIS","171890M"]
[null,null,null,null,"MAGNAN JEAN LUC","BILLARD CLUB DE LA SAUSSAYE","018043Z"]
[null,null,null,null,"MAHEUT ALEXANDRE","BILLARD CLUB DE FECAMP","160531Q"]
[null,null,null,null,"MAHIEU NORBERT","BILLARD CLUB OSSELIEN","122711R"]
[null,null,null,null,"MAISON MICHEL","BILLARD CLUB SOTTEVILLAIS","150113R"]
[null,null,null,null,"MARCHAIS PHILIPPE","PATRONAGE LAIQUE ARGENTAN","106835B"]
[null,null,null,null,"MARCHAIS RAPHAEL","ROUEN BILLARD CLUB","171976F"]
[null,null,null,null,"MARCIENNE JEAN BAPTISTE","BILLARD CLUB CORMELLOIS","172502C"]
[null,null,null,null,"MARECHAL LAURENT","BILLARD CLUB EBROICIEN","169559D"]
[null,null,null,null,"MARGERIE ERIC","BILLARD CLUB CORMELLOIS","168814T"]
[null,null,null,null,"MARRE JEAN CLAUDE","BILLARD CLUB CORMELLOIS","018002K"]
[null,null,null,null,"MARTIN JEAN CHRISTOPHE","ASSUN BILLARD","017799P"]
[null,null,null,null,"MARTINEAU PATRICE","BILLARD CLUB EBROICIEN","169560E"]
[null,null,null,null,"MARTINS JOSE BRAZ","ROUEN BILLARD CLUB","154240C"]
[null,null,null,null,"MARTORY PASCAL","BILLARD CLUB OSSELIEN","017664K"]
[null,null,null,null,"MARTORY PIERRE","BILLARD CLUB OSSELIEN","144782O"]
[null,null,null,null,"MARY JEAN CLAUDE","BILLARD CLUB DE BERNAY","153309Q"]
[null,null,null,null,"MASSON JEAN PIERRE","BILLARD CLUB DE LA SAUSSAYE","158108G"]
[null,null,null,null,"MATEOS RAYMOND","BILLARD CLUB PACEEN","126235F"]
[null,null,null,null,"MAULIEN AXEL","BILLARD CLUB PACEEN","170827G"]
[null,null,null,null,"MAUNOURY LAURENT","BILLARD CLUB CORMELLOIS","146122C"]
[null,null,null,null,"MAZE JEAN PIERRE","CLUB ECOLE HAVRAIS DE BILLARD","137816Q"]
[null,null,null,null,"MEGNAN JEAN PIERRE","BILLARD CLUB SOTTEVILLAIS","133889P"]
[null,null,null,null,"MEMMI GIANLUCA","ROUEN BILLARD CLUB","168681Z"]
[null,null,null,null,"MERCET HUGUES","CLUB ECOLE HAVRAIS DE BILLARD","017744M"]
[null,null,null,null,"MERETTE MICHEL","BILLARD CLUB CANY BARVILLE","146431Z"]
[null,null,null,null,"MICHAULT MARC","BILLARD AMICAL CLUB LOVERIEN","163171K"]
[null,null,null,null,"MICHON PHILIPPE","ROUEN BILLARD CLUB","165898Z"]
[null,null,null,null,"MIGA LAURENT","BILLARD CLUB OSSELIEN","149312W"]
[null,null,null,null,"MILLET DANIEL","BILLARD CLUB OSSELIEN","017867F"]
[null,null,null,null,"MINAULT JACQUES","BILLARD CLUB CANY BARVILLE","144302C"]
[null,null,null,null,"MINOUX JOEL","BILLARD CLUB CANY BARVILLE","170818X"]
[null,null,null,null,"MIRKOVIC MICHEL","BILLARD CLUB EBROICIEN","147085A"]
[null,null,null,null,"MOLINA CHRISTIAN","BILLARD CLUB SOTTEVILLAIS","145457N"]
[null,null,null,null,"MONNIER WILLIAM","ROUEN BILLARD CLUB","172325K"]
[null,null,null,null,"MONTADOR JEAN GABRIEL","BILLARD CLUB DE SAINT NICOLAS","131483B"]
[null,null,null,null,"MONTAGNE JEAN MARIE","BILLARD CLUB CORMELLOIS","168813S"]
[null,null,null,null,"MOREL FRANCIS","BILLARD CLUB DE LA SAUSSAYE","142932K"]
[null,null,null,null,"MOREL PATRICE","BILLARD CLUB OSSELIEN","138381J"]
[null,null,null,null,"MORLET JEAN","BILLARD CLUB DE LA SAUSSAYE","170315A"]
[null,null,null,null,"MOTTEAU LAURENT","BILLARD CLUB DE BERNAY","156736Q"]
[null,null,null,null,"MOULIN DANIEL","BILLARD CLUB CORMELLOIS","159291S"]
[null,null,null,null,"MOUSSET DAMIEN","BILLARD CLUB DE FECAMP","170094K"]
[null,null,null,null,"NEVEU LAURENT","BILLARD CLUB DE MAROMME","100555N"]
[null,null,null,null,"NEVEU PATRICK","BILLARD CLUB DE MAROMME","168019E"]
[null,null,null,null,"NICOLAS REMY","ROUEN BILLARD CLUB","160828N"]
[null,null,null,null,"NOEL GERARD","CLUB ECOLE HAVRAIS DE BILLARD","126227X"]
[null,null,null,null,"NOLLAND CHRISTIAN","BILLARD CLUB DE SAINT NICOLAS","137340I"]
[null,null,null,null,"NOTHEAUX JACQUES","BILLARD CLUB SOTTEVILLAIS","157733Z"]
[null,null,null,null,"NOWAK MICHAEL","BILLARD CLUB DE LA SAUSSAYE","017827R"]
[null,null,null,null,"OSTOR FRANCK","BILLARD CLUB DE LA SAUSSAYE","118847B"]
[null,null,null,null,"OUMAZIZ MARC","BILLARD CLUB DE SAINT NICOLAS","169327B"]
[null,null,null,null,"PAILLIE CYRILLE","PATRONAGE LAIQUE ARGENTAN","134656C"]
[null,null,null,null,"PAJON MARIE PIERRE","BILLARD CLUB DE SAINT-MARCEL","150068S"]
[null,null,null,null,"PARENT ALAIN","BILLARD CLUB EBROICIEN","017655B"]
[null,null,null,null,"PARIS OLIVIER","BILLARD CLUB CORMELLOIS","163529Z"]
[null,null,null,null,"PARMENTIER FRANC","BILLARD CLUB DE LA SAUSSAYE","017477F"]
[null,null,null,null,"PARNY MATYS","BILLARD CLUB PACEEN","169344V"]
[null,null,null,null,"PATOUREAUX THIERRY","BILLARD CLUB CANY BARVILLE","166736K"]
[null,null,null,null,"PATRY BRUNO","BILLARD CLUB CORMELLOIS","168812R"]
[null,null,null,null,"PELLETIER CHRISTIAN","BILLARD CLUB SOTTEVILLAIS","170121P"]
[null,null,null,null,"PERRIER JEAN","BILLARD CLUB DE FECAMP","017694O"]
[null,null,null,null,"PERROT JACKY","BILLARD CLUB CANY BARVILLE","152580Y"]
[null,null,null,null,"PETIT JOHANN","BILLARD CLUB OSSELIEN","017604C"]
[null,null,null,null,"PETIT SERGE","BILLARD CLUB DE MAROMME","168803G"]
[null,null,null,null,"PETITGRAND CLAUDE","BILLARD CLUB PACEEN","165969B"]
[null,null,null,null,"PETITON YANN","BILLARD CLUB DE FECAMP","100516A"]
[null,null,null,null,"PHILIPPE JEAN","ROUEN BILLARD CLUB","149830J"]
[null,null,null,null,"PICANDET FRANCOIS","BILLARD CLUB CORMELLOIS","149401S"]
[null,null,null,null,"PICARD ANDRE","BILLARD CLUB DE LA SAUSSAYE","148806W"]
[null,null,null,null,"PICARD ARTHUR","BILLARD CLUB OSSELIEN","160869H"]
[null,null,null,null,"PICARD CATHERINE","ASSUN BILLARD","163870V"]
[null,null,null,null,"PICARD SERGE","BILLARD CLUB OSSELIEN","167868Q"]
[null,null,null,null,"PICQUENOT JEAN PAUL","ASSUN BILLARD","145453J"]
[null,null,null,null,"PIERREL BRUNO","BILLARD CLUB SOTTEVILLAIS","017817H"]
[null,null,null,null,"PIETRZYK JEAN PIERRE","BILLARD CLUB DE MAROMME","155481B"]
[null,null,null,null,"PINEL RICHARD","BILLARD CLUB ANDELYSIEN","147140K"]
[null,null,null,null,"PITOIS FRANCIS","ARGENCES BILLARD CLUB","138573T"]
[null,null,null,null,"PITZ GEOFFROY","BILLARD CLUB DE MAROMME","128613R"]
[null,null,null,null,"PLESSIS GERARD","PATRONAGE LAIQUE ARGENTAN","106837D"]
[null,null,null,null,"PLOUARD ROLAND","BILLARD CLUB DE SAINT NICOLAS","169328C"]
[null,null,null,null,"POGNON MARIUS","BILLARD CLUB DE MAROMME","172029N"]
[null,null,null,null,"POIGNYE PATRICK","BILLARD CLUB SOTTEVILLAIS","142977D"]
[null,null,null,null,"POLLET DIDIER","BILLARD CLUB SOTTEVILLAIS","112582C"]
[null,null,null,null,"PONTHIEUX CHRISTIAN","ROUEN BILLARD CLUB","017730Y"]
[null,null,null,null,"PORET ANDRE","CLUB ECOLE HAVRAIS DE BILLARD","145700W"]
[null,null,null,null,"POUCHIN MAX","BILLARD CLUB CANY BARVILLE","018050G"]
[null,null,null,null,"POUL RAYMOND","ASSUN BILLARD","127825J"]
[null,null,null,null,"POULAIN JOSE","BILLARD CLUB DE SAINT NICOLAS","169329D"]
[null,null,null,null,"POULAIN YANNICK","BILLARD CLUB DE SAINT NICOLAS","169330E"]
[null,null,null,null,"POULET MARC","BILLARD CLUB DE LA SAUSSAYE","122687T"]
[null,null,null,null,"POUX JEAN LOUIS","ASSUN BILLARD","147997R"]
[null,null,null,null,"PREVOST PATRICE","BILLARD CLUB DE FECAMP","115463X"]
[null,null,null,null,"PREVOST PIERRE","ARGENCES BILLARD CLUB","117900Q"]
[null,null,null,null,"PREVOST ROGER","BILLARD CLUB DE SAINT NICOLAS","131485D"]
[null,null,null,null,"PRIEUR SEBASTIEN","BILLARD CLUB DE SAINT-MARCEL","118093B"]
[null,null,null,null,"PRIN MICHAEL","BILLARD CLUB CORMELLOIS","149403V"]
[null,null,null,null,"PROENCA ARMANDO","BILLARD CLUB DE MAROMME","165901C"]
[null,null,null,null,"PRUVOST MICHEL","BILLARD CLUB LEXOVIEN","137451P"]
[null,null,null,null,"PUSKAS MATTHIEU","BILLARD CLUB DE MAROMME","110520U"]
[null,null,null,null,"QUEILLE RICHARD","BILLARD CLUB SOTTEVILLAIS","162896L"]
[null,null,null,null,"QUESNOT LIONNEL","ROUEN BILLARD CLUB","140480C"]
[null,null,null,null,"QUILLAUD GERARD","BILLARD CLUB SOTTEVILLAIS","159709X"]
[null,null,null,null,"QUILLAUD PAULETTE","BILLARD CLUB SOTTEVILLAIS","159713B"]
[null,null,null,null,"RACHET ALAIN","BILLARD CLUB SOTTEVILLAIS","017909V"]
[null,null,null,null,"RAMDANI IBRAHIM","ROUEN BILLARD CLUB","154864F"]
[null,null,null,null,"REAUDIN GERARD","BILLARD CLUB CORMELLOIS","017727V"]
[null,null,null,null,"REICHSTADT ERIC","BILLARD CLUB DE BERNAY","163598Z"]
[null,null,null,null,"RENAULT LOUIS","CLUB ECOLE HAVRAIS DE BILLARD","170500B"]
[null,null,null,null,"RIBOULET LAURENT","BILLARD CLUB CORMELLOIS","116625P"]
[null,null,null,null,"RIGOLET GEORGES","ARGENCES BILLARD CLUB","141079D"]
[null,null,null,null,"RIPOLL JEAN YVES","BILLARD CLUB DE LA SAUSSAYE","118084S"]
[null,null,null,null,"RIVIERE CLAUDE","BILLARD CLUB ANDELYSIEN","159757Z"]
[null,null,null,null,"RIVOAL CYRILLE","BILLARD CLUB CORMELLOIS","140476Y"]
[null,null,null,null,"ROBERGE BRUNO","ROUEN BILLARD CLUB","017572W"]
[null,null,null,null,"ROBERT PIERRE","BILLARD CLUB DE BERNAY","134861Z"]
[null,null,null,null,"ROBIN JACQUES","BILLARD CLUB SOTTEVILLAIS","124617Z"]
[null,null,null,null,"ROBIN SEBASTIEN","BILLARD CLUB DE MAROMME","131519L"]
[null,null,null,null,"ROHART THIERRY","BILLARD CLUB SOTTEVILLAIS","148983N"]
[null,null,null,null,"ROLLAND ALAIN","CLUB ECOLE HAVRAIS DE BILLARD","144165V"]
[null,null,null,null,"ROMAIN ANTOINE","ARGENCES BILLARD CLUB","166144R"]
[null,null,null,null,"ROMAIN PATRICK","CLUB ECOLE HAVRAIS DE BILLARD","121127T"]
[null,null,null,null,"ROMELE ROLLAND","BILLARD CLUB CORMELLOIS","171934K"]
[null,null,null,null,"RONDU JACQUES","BILLARD AMICAL CLUB LOVERIEN","155024E"]
[null,null,null,null,"ROQUIGNY REMY","BILLARD CLUB DE LA SAUSSAYE","127143D"]
[null,null,null,null,"ROSCHBACH THIERRY","PATRONAGE LAIQUE ARGENTAN","144717B"]
[null,null,null,null,"ROSSI FRANCIS","ROUEN BILLARD CLUB","172007P"]
[null,null,null,null,"ROUSSEAU GERARD","ASSUN BILLARD","171005A"]
[null,null,null,null,"ROYE EMMANUEL","BILLARD CLUB CORMELLOIS","171889L"]
[null,null,null,null,"ROZE JACQUES","BILLARD AMICAL CLUB LOVERIEN","017974I"]
[null,null,null,null,"RUEDA RENE","CLUB ECOLE HAVRAIS DE BILLARD","017721P"]
[null,null,null,null,"SAINT REQUIER CHRISTIAN","BILLARD CLUB DE MAROMME","167738Z"]
[null,null,null,null,"SAMMUT JEAN CLAUDE","BILLARD CLUB DE FECAMP","147880P"]
[null,null,null,null,"SAMSON RONALD","BILLARD CLUB GAILLONNAIS","017495X"]
[null,null,null,null,"SANDT CHRISTIAN","BILLARD CLUB SOTTEVILLAIS","149174W"]
[null,null,null,null,"SANNIER SERGE","BILLARD CLUB DE LA SAUSSAYE","017829T"]
[null,null,null,null,"SAUVAGE JEAN PAUL","ROUEN BILLARD CLUB","158548K"]
[null,null,null,null,"SAUVAGE XAVIER","BILLARD CLUB SOTTEVILLAIS","166458H"]
[null,null,null,null,"SCHMITT CLAUDE","BILLARD CLUB DE LA SAUSSAYE","017478G"]
[null,null,null,null,"SCHWARTZ ALAIN","BILLARD AMICAL CLUB LOVERIEN","149904P"]
[null,null,null,null,"SEGARD PAUL","BILLARD CLUB DE FECAMP","170495W"]
[null,null,null,null,"SEGUIN PATRICK","BILLARD CLUB DE SAINT NICOLAS","171974D"]
[null,null,null,null,"SENCERT DIDIER","ROUEN BILLARD CLUB","109089T"]
[null,null,null,null,"SIMON ANDRE","BILLARD CLUB CORMELLOIS","122927Z"]
[null,null,null,null,"SIMON THOMAS","BILLARD CLUB DE MAROMME","157254D"]
[null,null,null,null,"SOLMON HERVE","BILLARD CLUB GAILLONNAIS","017626Y"]
[null,null,null,null,"SORTAIS CLAUDE","ROUEN BILLARD CLUB","017602A"]
[null,null,null,null,"SOULLIER GINO","CLUB ECOLE HAVRAIS DE BILLARD","164003P"]
[null,null,null,null,"SPANG PHILIPPE","BILLARD CLUB DE LA SAUSSAYE","170314Z"]
[null,null,null,null,"STAIGRE JEROME","BILLARD CLUB DE LA SAUSSAYE","018141T"]
[null,null,null,null,"STEELS JEAN MICHEL","CLUB ECOLE HAVRAIS DE BILLARD","172579L"]
[null,null,null,null,"SURLEMONT JEROME","BILLARD CLUB DE MAROMME","172205E"]
[null,null,null,null,"TALBOT MICHEL","ROUEN BILLARD CLUB","017544U"]
[null,null,null,null,"TALBOT REGIS","BILLARD CLUB CANY BARVILLE","170812Q"]
[null,null,null,null,"TELLIER BRUNO","BILLARD CLUB GAILLONNAIS","143284Y"]
[null,null,null,null,"THIRY ROBERT","BILLARD CLUB LEXOVIEN","017818I"]
[null,null,null,null,"THOMAS JEANNE","BILLARD CLUB CORMELLOIS","163589P"]
[null,null,null,null,"THOMAS PIERRE","BILLARD CLUB CORMELLOIS","166071M"]
[null,null,null,null,"THORY MICHEL","CLUB ECOLE HAVRAIS DE BILLARD","126230A"]
[null,null,null,null,"THUILLIER JEAN CLAUDE","BILLARD CLUB PACEEN","017671R"]
[null,null,null,null,"THUILLIER PIERRE","CLUB ECOLE HAVRAIS DE BILLARD","136729V"]
[null,null,null,null,"TILLON YVES","BILLARD CLUB DE BERNAY","153297C"]
[null,null,null,null,"TISSOT JEAN MICHEL","ASSUN BILLARD","149889Y"]
[null,null,null,null,"TOSTAIN ALEX","CLUB ECOLE HAVRAIS DE BILLARD","169973D"]
[null,null,null,null,"TOUCHAIS JEAN YVES","ROUEN BILLARD CLUB","170915C"]
[null,null,null,null,"TOURNEBIZE BENJAMIN","BILLARD CLUB DE BERNAY","172312W"]
[null,null,null,null,"TOUTAIN REMI","BILLARD CLUB PACEEN","159676L"]
[null,null,null,null,"TREHET SERGE","BILLARD CLUB GAILLONNAIS","018140S"]
[null,null,null,null,"TROUSSIER PIERRE","BILLARD CLUB LEXOVIEN","017498A"]
[null,null,null,null,"TY JOSHUA","BILLARD AMICAL CLUB LOVERIEN","161122H"]
[null,null,null,null,"ULRICH ALAIN","ASSUN BILLARD","101687B"]
[null,null,null,null,"VALLE JOEL","BILLARD CLUB DE MAROMME","107251B"]
[null,null,null,null,"VALLIER RENE","BILLARD CLUB DE MAROMME","166048M"]
[null,null,null,null,"VALLOIS CHRISTOPHE","BILLARD CLUB DE SAINT NICOLAS","166311Y"]
[null,null,null,null,"VARACHE ALBAN","CLUB ECOLE HAVRAIS DE BILLARD","100599F"]
[null,null,null,null,"VARACHE SERGE","CLUB ECOLE HAVRAIS DE BILLARD","017650W"]
[null,null,null,null,"VARIGNON DOMINIQUE","BILLARD CLUB DE SAINT NICOLAS","131487F"]
[null,null,null,null,"VARIN ODETTE","BILLARD CLUB ANDELYSIEN","137522I"]
[null,null,null,null,"VASSEUR YANNICK","BILLARD CLUB DE SAINT NICOLAS","122848Y"]
[null,null,null,null,"VAUR PHILIPPE","PATRONAGE LAIQUE ARGENTAN","104066O"]
[null,null,null,null,"VERDREL DIDIER","BILLARD CLUB DE SAINT NICOLAS","139912G"]
[null,null,null,null,"VEREL SEBASTIEN","BILLARD CLUB OSSELIEN","141213H"]
[null,null,null,null,"VERITE LEO","BILLARD AMICAL CLUB LOVERIEN","160306W"]
[null,null,null,null,"VERITE STEPHANE","BILLARD AMICAL CLUB LOVERIEN","160305V"]
[null,null,null,null,"VICTORIA VINCENT","ARGENCES BILLARD CLUB","100615V"]
[null,null,null,null,"VIGNE PIERRE","BILLARD CLUB GAILLONNAIS","018005N"]
[null,null,null,null,"VIMBERT JEAN","CLUB ECOLE HAVRAIS DE BILLARD","017991Z"]
[null,null,null,null,"VINCENT DANIEL","BILLARD CLUB PACEEN","126236G"]
[null,null,null,null,"VOYER MICHEL","BILLARD CLUB ANDELYSIEN","017856U"]
[null,null,null,null,"VUILLEQUEY GEORGES","BILLARD CLUB DE BERNAY","166757H"]
[null,null,null,null,"WILLEMYNS JACK","BILLARD CLUB PACEEN","126237H"]
[null,null,null,null,"ZIMMERLIN DANIEL","BILLARD CLUB SOTTEVILLAIS","017923J"]
[null,null,null,null,"ZWAENEPOEL PHILIPPE","BILLARD CLUB DE SAINT NICOLAS","124290K"]

{"sheet":"Poule de 6","index":1,"n_rows":40,"n_cols":45,"rows_kept":40,"cut":false,"hidden":false,"merged":[[11,23,13,23],[17,22,19,22],[11,24,13,24],[9,13,9,15],[8,22,8,25],[8,1,8,3],[9,22,9,25],[8,4,8,18],[8,19,8,21],[9,19,9,21],[29,0,31,0],[3,1,3,5],[5,6,5,16],[20,10,22,12],[23,13,25,15],[11,1,13,3],[17,7,19,9],[9,16,9,18],[9,4,9,6],[9,7,9,9],[17,24,19,24],[14,24,16,24],[23,21,25,21],[23,22,25,22],[23,23,25,23],[17,23,19,23],[30,21,31,25],[26,25,28,25],[26,22,28,22],[26,16,28,18],[26,19,28,19],[26,20,28,20],[29,22,29,25],[26,21,28,21],[26,23,28,23],[26,24,28,24],[32,0,32,25],[0,0,0,25],[3,6,3,16],[4,6,4,16],[6,6,6,16],[2,1,2,16],[4,1,5,5],[9,10,9,12],[6,1,6,5],[9,1,9,3],[17,19,19,19],[17,21,19,21],[14,21,16,21],[17,20,19,20],[14,20,16,20],[20,19,22,19],[20,20,22,20],[26,36,28,36],[20,23,22,23],[23,24,25,24],[20,22,22,22],[14,4,16,6],[11,19,13,19],[11,20,13,20],[11,21,13,21],[14,19,16,19],[11,22,13,22],[20,24,22,24],[20,21,22,21],[23,25,25,25],[23,36,25,36],[20,26,22,26],[20,27,22,27],[23,26,25,26],[23,27,25,27],[26,27,28,27],[11,28,13,28],[14,28,16,28],[17,28,19,28],[20,28,22,28],[23,28,25,28],[26,28,28,28],[23,38,25,38],[20,36,22,36],[26,26,28,26],[11,30,11,34],[11,38,13,38],[14,38,16,38],[17,36,19,36],[26,37,28,37],[26,38,28,38],[11,26,13,26],[11,37,13,37],[14,37,16,37],[10,36,10,37],[11,25,13,25],[14,39,16,39],[14,36,16,36],[14,27,16,27],[11,36,13,36],[11,27,13,27],[14,22,16,22],[14,23,16,23],[17,40,19,40],[20,40,22,40],[14,25,16,25],[17,25,19,25],[20,25,22,25],[17,37,19,37],[20,37,22,37],[17,26,19,26],[17,38,19,38],[20,38,22,38],[10,38,10,39],[23,19,25,19],[23,20,25,20],[10,40,10,41],[14,41,16,41],[11,39,13,39],[14,26,16,26],[17,27,19,27],[20,39,22,39],[17,41,19,41],[17,39,19,39],[26,40,28,40],[14,40,16,40],[26,41,28,41],[17,42,19,42],[26,43,28,43],[26,39,28,39],[23,37,25,37],[23,40,25,40],[11,41,13,41],[11,40,13,40],[23,41,25,41],[23,39,25,39],[20,41,22,41],[20,42,22,42],[23,42,25,42],[26,42,28,42],[11,43,13,43],[14,43,16,43],[17,43,19,43],[20,43,22,43],[23,43,25,43],[11,42,13,42],[14,42,16,42],[11,44,13,44],[14,44,16,44],[17,44,19,44],[20,44,22,44],[23,44,25,44],[26,44,28,44]]}
["LIGUE DE NORMANDIE DE BILLARD 2020-21"]
[]
["Version","Lieu de la compétition"]
["5.3","Nom du club"]
[null,"Numéro et rue",null,null,null,null,{"$f":"IF(G4<>\"\",VLOOKUP(G4,coordonnees_clubs,3,FALSE),\"\")","v":""}]
["du",null,null,null,null,null,{"$f":"IF(G4<>\"\",VLOOKUP(G4,coordonnees_clubs,4,FALSE),\"\")","v":""}]
["2020-10-08","Code postal et commune",null,null,null,null,{"$f":"IF(G4<>\"\",VLOOKUP(G4,coordonnees_clubs,5,FALSE),\"\")","v":""}]
[]
[null,"Compétition",null,null,null,null,null,null,null,null,null,null,null,null,null,null,null,null,null,"Mode de jeu"]
[null,"Date",null,null,null,null,null,"Catégorie",null,null,null,null,null,"Format Billard",null,null,null,null,null,"Distance"]
["Nom  Prénom\nClub\nLicence",{"$f":"IF(A12<>\"\",A12,\"\")","v":""},{"$f":"IF(A13<>\"\",A13,\"\")","v":""},{"$f":"IF(A14<>\"\",A14,\"\")","v":""},{"$f":"IF(A15<>\"\",A15,\"\")","v":""},{"$f":"IF(A16<>\"\",A16,\"\")","v":""},{"$f":"IF(A17<>\"\",A17,\"\")","v":""},{"$f":"IF(A18<>\"\",A18,\"\")","v":""},{"$f":"IF(A19<>\"\",A19,\"\")","v":""},{"$f":"IF(A20<>\"\",A20,\"\")","v":""},{"$f":"IF(A21<>\"\",A21,\"\")","v":""},{"$f":"IF(A22<>\"\",A22,\"\")","v":""},{"$f":"IF(A23<>\"\",A23,\"\")","v":""},{"$f":"IF(A24<>\"\",A24,\"\")","v":""},{"$f":"IF(A25<>\"\",A25,\"\")","v":""},{"$f":"IF(A26<>\"\",A26,\"\")","v":""},{"$f":"IF(A27<>\"\",A27,\"\")","v":""},{"$f":"IF(A28<>\"\",A28,\"\")","v":""},{"$f":"IF(A29<>\"\",A29,\"\")","v":""},"Points","Reprises","Série","Moyenne Générale","Moyenne particulière","Points de match","Classement","Points  classement acquis","Pts ranking obtenus","Total pts classement",null,null,null,null,null,null,null,"Points",null,"MG",null,"MP",null,"Cumul"]
[null,"L",null,null,null,null,null,null,null,null,null,null,null,null,null,null,null,null,null,{"$f":"SUM(E12+H12+K12+N12+Q12)","v":0},{"$f":"SUM(G12+J12+M12+P12+S12)","v":0},{"$f":"MAX(E14,H14,K14,N14,Q14)","v":0},{"$f":"IF(U12>0,T12/U12,0)","v":0},{"$f":"MAX(AE14:AI14)","v":0},{"$f":"SUM(F13+I13+L13+O13+R13)","v":0},{"$f":"IF(A12<>\"\",AS12,\"\")","v":""},null,{"$f":"IFERROR(VLOOKUP(Z12,points_ranking,2,FALSE),0)","v":0},{"$f":"Y12+AA12+AB12","v":0},null,"Moyennes particulières",null,null,null,null,null,{"$f":"Y12","v":0},{"$f":"RANK(AK12,$Y$12:$Y$29,0)","v":1},{"$f":"W12","v":0},{"$f":"RANK(AM12,W12:W29)","v":1},{"$f":"X12","v":0},{"$f":"RANK(AO12,X12:X29)","v":1},{"$f":"(AL12*100)+(AN12*10)+(AP12*1)","v":111},{"$f":"AQ12","v":111},{"$f":"RANK(AR12,$AQ$12:$AQ$29,1)","v":1}]
[{"$f":"IF(A12<>\"\",VLOOKUP(A12,coordonnees_joueurs,2,FALSE),\"\")","v":""},null,null,null,null,0]
[{"$f":"IF(A12<>\"\",VLOOKUP(A12,coordonnees_joueurs,3,FALSE),\"\")","v":""},null,null,null,null,null,{"$f":"IF(G12>0,E12/G12,\"\")","v":""},null,null,{"$f":"IF(J12>0,H12/J12,\"\")","v":""},null,null,{"$f":"IF(M12>0,K12/M12,\"\")","v":""},null,null,{"$f":"IF(P12>0,N12/P12,\"\")","v":""},null,null,{"$f":"IF(S12>0,Q12/S12,\"\")","v":""},null,null,null,null,null,null,null,null,null,null,null,{"$f":"IF(F13>1,G14,0)","v":0},{"$f":"IF(I13>1,J14,0)","v":0},{"$f":"IF(L13>1,M14,0)","v":0},{"$f":"IF(O13>1,P14,0)","v":0},{"$f":"IF(R13>1,S14,0)","v":0}]
[null,null,null,null,"N",null,null,null,null,null,null,null,null,null,null,null,null,null,null,{"$f":"SUM(B15+H15+K15+N15+Q15)","v":0},{"$f":"SUM(D15+J15+M15+P15+S15)","v":0},{"$f":"MAX(B17,H17,K17,N17,Q17)","v":0},{"$f":"IF(U15>0,T15/U15,0)","v":0},{"$f":"MAX(AE17:AI17)","v":0},{"$f":"SUM(C16+I16+L16+O16+R16)","v":0},{"$f":"IF(A15<>\"\",AS15,\"\")","v":""},null,{"$f":"IFERROR(VLOOKUP(Z15,points_ranking,2,FALSE),0)","v":0},{"$f":"Y15+AA15+AB15","v":0},null,null,null,null,null,null,null,{"$f":"Y15","v":0},{"$f":"RANK(AK15,$Y$12:$Y$29,0)","v":1},{"$f":"W15","v":0},{"$f":"RANK(W15,$W$12:$W$29)","v":1},{"$f":"X15","v":0},{"$f":"RANK(AO15,X15:X32)","v":1},{"$f":"(AL15*100)+(AN15*10)+(AP15*1)","v":111},{"$f":"AQ15","v":111},{"$f":"RANK(AR15,$AQ$12:$AQ$29,1)","v":1}]
[{"$f":"IF(A15<>\"\",VLOOKUP(A15,coordonnees_joueurs,2,FALSE),\"\")","v":""}]
[{"$f":"IF(A15<>\"\",VLOOKUP(A15,coordonnees_joueurs,3,FALSE),\"\")","v":""},null,null,{"$f":"IF(D15>0,B15/D15,\"\")","v":""},null,null,null,null,null,{"$f":"IF(J15>0,H15/J15,\"\")","v":""},null,null,{"$f":"IF(M15>0,K15/M15,\"\")","v":""},null,null,{"$f":"IF(P15>0,N15/P15,\"\")","v":""},null,null,{"$f":"IF(S15>0,Q15/S15,\"\")","v":""},null,null,null,null,null,null,null,null,null,null,null,{"$f":"IF(C16>1,D17,0)","v":0},{"$f":"IF(I16>1,J17,0)","v":0},{"$f":"IF(L16>1,M17,0)","v":0},{"$f":"IF(O16>1,P17,0)","v":0},{"$f":"IF(R16>1,S17,0)","v":0}]
[null,null,null,null,null,null,null,"B",null,null,null,null,null,null,null,null,null,null,null,{"$f":"SUM(B18+E18+K18+N18+Q18)","v":0},{"$f":"SUM(D18+G18+M18+P18+S18)","v":0},{"$f":"MAX(B20,E20,K20,N20,Q20)","v":0},{"$f":"IF(U18>0,T18/U18,0)","v":0},{"$f":"MAX(AE20:AI20)","v":0},{"$f":"SUM(C19+F19+L19+O19+R19)","v":0},{"$f":"IF(A18<>\"\",AS18,\"\")","v":""},null,{"$f":"IFERROR(VLOOKUP(Z18,points_ranking,2,FALSE),0)","v":0},{"$f":"Y18+AA18+AB18","v":0},null,null,null,null,null,null,null,{"$f":"Y18","v":0},{"$f":"RANK(AK18,$Y$12:$Y$29,0)","v":1},{"$f":"W18","v":0},{"$f":"RANK(W18,$W$12:$W$29)","v":1},{"$f":"X18","v":0},{"$f":"RANK(AO18,X18:X35)","v":1},{"$f":"(AL18*100)+(AN18*10)+(AP18*1)","v":111},{"$f":"AQ18","v":111},{"$f":"RANK(AR18,$AQ$12:$AQ$29,1)","v":1}]
[{"$f":"IF(A18<>\"\",VLOOKUP(A18,coordonnees_joueurs,2,FALSE),\"\")","v":""}]
[{"$f":"IF(A18<>\"\",VLOOKUP(A18,coordonnees_joueurs,3,FALSE),\"\")","v":""},null,null,{"$f":"IF(D18>0,B18/D18,\"\")","v":""},null,null,{"$f":"IF(G18>0,E18/G18,\"\")","v":""},null,null,null,null,null,{"$f":"IF(M18>0,K18/M18,\"\")","v":""},null,null,{"$f":"IF(P18>0,N18/P18,\"\")","v":""},null,null,{"$f":"IF(S18>0,Q18/S18,\"\")","v":""},null,null,null,null,null,null,null,null,null,null,null,{"$f":"IF(C19>1,D20,0)","v":0},{"$f":"IF(F19>1,G20,0)","v":0},{"$f":"IF(L19>1,M20,0)","v":0},{"$f":"IF(O19>1,P20,0)","v":0},{"$f":"IF(R19>1,S20,0)","v":0}]
[null,null,null,null,null,null,null,null,null,null,"l",null,null,null,null,null,null,null,null,{"$f":"SUM(B21+E21+H21+N21+Q21)","v":0},{"$f":"SUM(D21+G21+J21+P21+S21)","v":0},{"$f":"MAX(B23,E23,H23,N23,Q23)","v":0},{"$f":"IF(U21>0,T21/U21,0)","v":0},{"$f":"MAX(AE23:AI23)","v":0},{"$f":"SUM(C22+F22+I22+O22+R22)","v":0},{"$f":"IF(A21<>\"\",AS21,\"\")","v":""},null,{"$f":"IFERROR(VLOOKUP(Z21,points_ranking,2,FALSE),0)","v":0},{"$f":"Y21+AA21+AB21","v":0},null,null,null,null,null,null,null,{"$f":"Y21","v":0},{"$f":"RANK(AK21,$Y$12:$Y$29,0)","v":1},{"$f":"W21","v":0},{"$f":"RANK(W21,$W$12:$W$29)","v":1},{"$f":"X21","v":0},{"$f":"RANK(AO21,X21:X38)","v":1},{"$f":"(AL21*100)+(AN21*10)+(AP21*1)","v":111},{"$f":"AQ21","v":111},{"$f":"RANK(AR21,$AQ$12:$AQ$29,1)","v":1}]
[{"$f":"IF(A21<>\"\",VLOOKUP(A21,coordonnees_joueurs,2,FALSE),\"\")","v":""}]
[{"$f":"IF(A21<>\"\",VLOOKUP(A21,coordonnees_joueurs,3,FALSE),\"\")","v":""},null,null,{"$f":"IF(D21>0,B21/D21,\"\")","v":""},null,null,{"$f":"IF(G21>0,E21/G21,\"\")","v":""},null,null,{"$f":"IF(J21>0,H21/J21,\"\")","v":""},null,null,null,null,null,{"$f":"IF(P21>0,N21/P21,\"\")","v":""},null,null,{"$f":"IF(S21>0,Q21/S21,\"\")","v":""},null,null,null,null,null,null,null,null,null,null,null,{"$f":"IF(C22>1,D23,0)","v":0},{"$f":"IF(F22>1,G23,0)","v":0},{"$f":"IF(I22>1,J23,0)","v":0},{"$f":"IF(O22>1,P23,0)","v":0},{"$f":"IF(R22>1,S23,0)","v":0}]
[null,null,null,null,null,null,null,null,null,null,null,null,null,2018,null,null,null,null,null,{"$f":"SUM(B24+E24+H24+K24+Q24)","v":0},{"$f":"SUM(D24+G24+J24+M24+S24)","v":0},{"$f":"MAX(B26,E26,H26,K26,Q26)","v":0},{"$f":"IF(U24>0,T24/U24,0)","v":0},{"$f":"MAX(AE26:AI26)","v":0},{"$f":"SUM(C25+F25+I25+L25+R25)","v":0},{"$f":"IF(A24<>\"\",AS24,\"\")","v":""},null,{"$f":"IFERROR(VLOOKUP(Z24,points_ranking,2,FALSE),0)","v":0},{"$f":"Y24+AA24+AB24","v":0},null,null,null,null,null,null,null,{"$f":"Y24","v":0},{"$f":"RANK(AK24,$Y$12:$Y$29,0)","v":1},{"$f":"W24","v":0},{"$f":"RANK(W24,$W$12:$W$29)","v":1},{"$f":"X24","v":0},{"$f":"RANK(AO24,X24:X41)","v":1},{"$f":"(AL24*100)+(AN24*10)+(AP24*1)","v":111},{"$f":"AQ24","v":111},{"$f":"RANK(AR24,$AQ$12:$AQ$29,1)","v":1}]
[{"$f":"IF(A24<>\"\",VLOOKUP(A24,coordonnees_joueurs,2,FALSE),\"\")","v":""}]
[{"$f":"IF(A24<>\"\",VLOOKUP(A24,coordonnees_joueurs,3,FALSE),\"\")","v":""},null,null,{"$f":"IF(D24>0,B24/D24,\"\")","v":""},null,null,{"$f":"IF(G24>0,E24/G24,\"\")","v":""},null,null,{"$f":"IF(J24>0,H24/J24,\"\")","v":""},null,null,{"$f":"IF(M24>0,K24/M24,\"\")","v":""},null,null,null,null,null,{"$f":"IF(S24>0,Q24/S24,\"\")","v":""},null,null,null,null,null,null,null,null,null,null,null,{"$f":"IF(C25>1,D26,0)","v":0},{"$f":"IF(F25>1,G26,0)","v":0},{"$f":"IF(I25>1,J26,0)","v":0},{"$f":"IF(L25>1,M26,0)","v":0},{"$f":"IF(R25>1,S26,0)","v":0}]
[null,null,null,null,null,null,null,null,null,null,null,null,null,null,null,null,2019,null,null,{"$f":"SUM(B27+E27+H27+K27+N27)","v":0},{"$f":"SUM(D27+G27+J27+M27+P27)","v":0},{"$f":"MAX(B29,E29,H29,K29,N29)","v":0},{"$f":"IF(U27>0,T27/U27,0)","v":0},{"$f":"MAX(AE29:AI29)","v":0},{"$f":"SUM(C28+F28+I28+L28+O28)","v":0},{"$f":"IF(A27<>\"\",AS27,\"\")","v":""},null,{"$f":"IFERROR(VLOOKUP(Z27,points_ranking,2,FALSE),0)","v":0},{"$f":"Y27+AA27+AB27","v":0},null,null,null,null,null,null,null,{"$f":"Y27","v":0},{"$f":"RANK(AK27,$Y$12:$Y$29,0)","v":1},{"$f":"W27","v":0},{"$f":"RANK(W27,$W$12:$W$29)","v":1},{"$f":"X27","v":0},{"$f":"RANK(AO27,X27:X44)","v":1},{"$f":"(AL27*100)+(AN27*10)+(AP27*1)","v":111},{"$f":"AQ27","v":111},{"$f":"RANK(AR27,$AQ$12:$AQ$29,1)","v":1}]
[{"$f":"IF(A27<>\"\",VLOOKUP(A27,coordonnees_joueurs,2,FALSE),\"\")","v":""}]
[{"$f":"IF(A27<>\"\",VLOOKUP(A27,coordonnees_joueurs,3,FALSE),\"\")","v":""},null,null,{"$f":"IF(D27>0,B27/D27,\"\")","v":""},null,null,{"$f":"IF(G27>0,E27/G27,\"\")","v":""},null,null,{"$f":"IF(J27>0,H27/J27,\"\")","v":""},null,null,{"$f":"IF(M27>0,K27/M27,\"\")","v":""},null,null,{"$f":"IF(P27>0,N27/P27,\"\")","v":""},null,null,null,null,null,null,null,null,null,null,null,null,null,null,{"$f":"IF(C28>1,D29,0)","v":0},{"$f":"IF(F28>1,G29,0)","v":0},{"$f":"IF(I28>1,J29,0)","v":0},{"$f":"IF(L28>1,M29,0)","v":0},{"$f":"IF(O28>1,P29,0)","v":0}]
["Signatures",null,null,null,null,null,null,null,null,null,null,null,null,null,null,null,null,null,null,"Directeur de jeu :"]
[null,null,null,null,null,null,null,null,null,null,null,null,null,null,null,null,null,null,null,"Signature :"]
[]
["ATTENTION : Un joueur forfait ne doit pas figurer sur cette feuille.Les tours de jeu ne seraient plus conformes.",null,null,null,null,null,null,null,null,null,null,null,null,null,null,null,null,null,null,null,null,null,null,null,null,null,null,null,null,null,"Points de ranking"]
[]
[null,null,null,null,null,null,null,null,null,null,null,null,null,null,null,null,null,null,null,null,null,null,null,null,null,null,null,null,null,null,1,22]
[null,null,null,null,null,null,null,null,null,null,null,null,null,null,null,null,null,null,null,null,null,null,null,null,null,null,null,null,null,null,2,19]
[null,null,null,null,null,null,null,null,null,null,null,null,null,null,null,null,null,null,null,null,null,null,null,null,null,null,null,null,null,null,3,16]
[null,null,null,null,null,null,null,null,null,null,null,null,null,null,null,null,null,null,null,null,null,null,null,null,null,null,null,null,null,null,4,14]
[null,null,null,null,null,null,null,null,null,null,null,null,null,null,null,null,null,null,null,null,null,null,null,null,null,null,null,null,null,null,5,12]
[null,null,null,null,null,null,null,null,null,null,null,null,null,null,null,null,null,null,null,null,null,null,null,null,null,null,null,null,null,null,6,11]

{"sheet":"Tours de jeu","index":2,"n_rows":72,"n_cols":28,"rows_kept":72,"cut":false,"hidden":false,"merged":[[7,4,7,5],[12,12,12,13],[45,3,48,3],[5,12,5,15],[6,13,6,14],[7,13,7,14],[17,3,18,3],[8,13,8,14],[9,3,9,4],[5,3,5,6],[9,13,9,14],[14,12,15,12],[14,3,15,3],[20,3,21,3],[23,3,23,4],[25,3,28,3],[40,3,43,3],[1,26,1,27],[1,23,1,25],[12,3,12,4],[6,4,6,5],[8,4,8,5],[45,12,48,12],[0,0,0,17],[0,26,0,27],[23,20,23,21],[23,23,23,25],[40,12,43,12],[20,12,21,12],[1,17,1,21],[30,3,33,3],[35,3,38,3],[50,4,51,6],[50,15,51,17],[49,22,49,25],[61,22,61,25],[10,12,10,13],[35,12,38,12],[23,12,23,13],[25,12,28,12],[30,12,33,12],[17,12,18,12]]}
["Compétitions disputées sous forme de poule - Organisation des tours de jeu",null,null,null,null,null,null,null,null,null,null,null,null,null,null,null,null,null,null,null,null,null,null,null,null,null,"Les clubs"]
[]
[null,null,null,null,null,null,null,"Nombre de joueurs engagés",null,null,null,null,{"$f":"COUNTA('Poule de 6'!A12,'Poule de 6'!A15,'Poule de 6'!A18,'Poule de 6'!A21,'Poule de 6'!A24,'Poule de 6'!A27)","v":0}]
[]
[]
[null,null,null,"Liste des joueurs engagés",null,null,null,null,null,null,null,null,"Liste des joueurs engagés"]
[null,{"$f":"IF(C7=1,\"joueur_1\",\"\")","v":"joueur_1"},{"$f":"IF(OR(E7=E8,E7=E9),1,\"\")","v":1},1,{"$f":"IF($M$3=3,'Poule de 6'!A13,\"\")","v":""},null,{"$f":"IF($M$3=3,'Poule de 6'!A12,\"\")","v":""},null,null,null,{"$f":"RANK(L7,$L$7:$L$10,1)","v":1},{"$f":"IF(OR(N7=N8,N7=N9,N7=N10),1,11)","v":1},1,{"$f":"IF($M$3=4,'Poule de 6'!A13,\"\")","v":""},null,{"$f":"IF($M$3=4,'Poule de 6'!A12,\"\")","v":""}]
[null,{"$f":"IF(C8=2,IF(B7=\"\",\"joueur_1\",\"joueur_2\"),\"\")","v":"joueur_2"},{"$f":"IF(OR(E8=E7,E8=E9),2,\"\")","v":2},2,{"$f":"IF($M$3=3,'Poule de 6'!A16,\"\")","v":""},null,{"$f":"IF($M$3=3,'Poule de 6'!A15,\"\")","v":""},null,null,null,{"$f":"RANK(L8,$L$7:$L$10,1)","v":2},{"$f":"IF(OR(N8=N9,N8=N10,N8=N7),2,12)","v":2},2,{"$f":"IF($M$3=4,'Poule de 6'!A16,\"\")","v":""},null,{"$f":"IF($M$3=4,'Poule de 6'!A15,\"\")","v":""}]
[null,{"$f":"IF(C9=3,\"joueur_2\",\"\")","v":"joueur_2"},{"$f":"IF(OR(E9=E7,E9=E8),3,\"\")","v":3},3,{"$f":"IF($M$3=3,'Poule de 6'!A19,\"\")","v":""},null,{"$f":"IF($M$3=3,'Poule de 6'!A18,\"\")","v":""},null,null,null,{"$f":"RANK(L9,$L$7:$L$10,1)","v":3},{"$f":"IF(OR(N9=N10,N9=N8,N9=N7),3,13)","v":3},3,{"$f":"IF($M$3=4,'Poule de 6'!A19,\"\")","v":""},null,{"$f":"IF($M$3=4,'Poule de 6'!A18,\"\")","v":""}]
[null,null,null,"Joueurs d'un même club",null,null,{"$f":"COUNTIF(C7:C9,\">0\")","v":3},null,null,null,{"$f":"RANK(L10,$L$7:$L$10,1)","v":4},{"$f":"IF(OR(N10=N7,N10=N8,N10=N9),4,14)","v":4},4,{"$f":"IF($M$3=4,'Poule de 6'!A22,\"\")","v":""},null,{"$f":"IF($M$3=4,'Poule de 6'!A21,\"\")","v":""}]
[null,null,null,null,null,null,null,null,null,null,null,null,"Joueurs d'un même club",null,null,{"$f":"COUNTIF(L7:L10,\"<10\")","v":4}]
[]
[null,null,null,"Poule de 3 joueurs",null,null,null,null,null,null,null,null,"Poule de 4 joueurs",null,null,null,null,null,null,null,null,null,null,null,null,null,"ARGENCES BILLARD CLUB","ARGENCES"]
[null,null,null,null,"Billard unique",null,null,null,null,null,null,null,null,"Billard 1",null,"Billard 2",null,null,null,null,null,null,null,null,null,null,"ASSUN BILLARD","URVILLE"]
[null,null,null,"Tour n°1",{"$f":"IF(AND(M3=3,G10=2),VLOOKUP(\"joueur_1\",joueurs_engages,6,FALSE),G8)","v":""},null,null,null,null,null,null,null,"Tour n°1",{"$f":"IF(AND(M3=4,P11=2),VLOOKUP(1,meme_club_poule_4,6,FALSE),P8)","v":""},null,{"$f":"IF(AND(M3=4,P11=2),VLOOKUP(3,meme_club_poule_4,6,FALSE),P7)","v":""},null,null,null,null,null,null,null,null,null,null,"BILLARD AMICAL CLUB LOVERIEN","LOUVIERS"]
[null,null,null,null,{"$f":"IF(AND(M3=3,G10=2),VLOOKUP(\"joueur_2\",joueurs_engages,6,FALSE),G9)","v":""},null,null,null,null,null,null,null,null,{"$f":"IF(AND(M3=4,P11=2),VLOOKUP(2,meme_club_poule_4,6,FALSE),P9)","v":""},null,{"$f":"IF(AND(M3=4,P11=2),VLOOKUP(4,meme_club_poule_4,6,FALSE),P10)","v":""},null,null,null,null,null,null,null,null,null,null,"BILLARD CLUB ANDELYSIEN","LES ANDELYS"]
[null,null,null,null,null,null,null,null,null,null,null,null,null,null,null,null,null,null,null,null,null,null,null,null,null,null,"BILLARD CLUB CANY BARVILLE","CANY"]
[null,null,null,"Tour n°2",{"$f":"IF(G10<>2,G7,VLOOKUP(\"\",joueurs_engages,6,FALSE))","v":""},null,null,null,null,null,null,null,"Tour n°2",{"$f":"IF(M3=4,\"Perdant billard 1\",\"\")","v":""},null,{"$f":"IF(M3=4,\"Vainqueur billard 1\",\"\")","v":""},null,null,null,null,null,null,null,null,null,null,"BILLARD CLUB CORMELLOIS","CORMELLES"]
[null,null,null,null,{"$f":"IF(M3=3,\"Perdant du tour n° 1\",\"\")","v":""},null,null,null,null,null,null,null,null,{"$f":"IF(M3=4,\"Perdant billard 2\",\"\")","v":""},null,{"$f":"IF(M3=4,\"Vainqueur billard 2\",\"\")","v":""},null,null,null,null,null,null,null,null,null,null,"BILLARD CLUB DE BERNAY","BERNAY"]
[null,null,null,null,null,null,null,null,null,null,null,null,null,null,null,null,null,null,null,null,null,null,null,null,null,null,"BILLARD CLUB DE FECAMP","FECAMP"]
[null,null,null,"Tour n°3",{"$f":"IF(G10<>2,G7,VLOOKUP(\"\",joueurs_engages,6,FALSE))","v":""},null,null,null,null,null,null,null,"Tour n°3",{"$f":"P7","v":""},null,{"$f":"P10","v":""},null,null,null,null,null,null,null,null,null,null,"BILLARD CLUB DE LA SAUSSAYE","LA SAUSSAYE"]
[null,null,null,null,{"$f":"IF(M3=3,\"Gagnant du tour n° 1\",\"\")","v":""},null,null,null,null,null,null,null,null,{"$f":"IF(M3=4,\"Dernier adversaire\",\"\")","v":""},null,{"$f":"IF(M3=4,\"Dernier adversaire\",\"\")","v":""},null,null,null,null,null,null,null,null,null,null,"BILLARD CLUB DE MAROMME","MAROMME"]
[null,null,null,null,null,null,null,null,null,null,null,null,null,null,null,null,null,null,null,null,null,null,null,null,null,null,"BILLARD CLUB DE SAINT NICOLAS","ST NICOLAS"]
[null,null,null,"Poule de 5 joueurs",null,null,null,null,null,null,null,null,"Poule de 6 joueurs",null,null,null,null,null,null,null,"Poule de 5",null,null,"Poule de 6",null,null,"BILLARD CLUB DE SAINT-MARCEL","ST MARCEL"]
[null,null,null,null,"Billard 1",null,"Billard 2",null,"Exempt",null,null,null,null,"Billard 1",null,"Billard 2",null,"Billard 3",null,null,"B1","B2",null,"B1","B2","B3","BILLARD CLUB EBROICIEN","EVREUX"]
[null,null,null,{"$f":"IF(M3=5,\"Tour n°1\",\"\")","v":""},{"$f":"IF($M$3=5,'Poule de 6'!A18,\"\")","v":""},null,{"$f":"IF(M3=5,'Poule de 6'!A15,\"\")","v":""},null,null,null,null,null,{"$f":"IF(M3=6,\"Tour n°1\",\"\")","v":""},{"$f":"IF($M$3=6,'Poule de 6'!$A$12,\"\")","v":""},null,{"$f":"IF($M$3=6,'Poule de 6'!$A$15,\"\")","v":""},null,{"$f":"IF($M$3=6,'Poule de 6'!$A$18,\"\")","v":""},null,null,"3 / 4","2 / 5",null,1,2,3,"BILLARD CLUB GAILLONNAIS","GAILLON"]
[null,null,null,null,{"$f":"IF($M$3=5,VLOOKUP('Poule de 6'!A19,raccourci_club,2,FALSE),\"\")","v":""},null,{"$f":"IF($M$3=5,VLOOKUP('Poule de 6'!A16,raccourci_club,2,FALSE),\"\")","v":""},null,{"$f":"IF($M$3=5,'Poule de 6'!A12,\"\")","v":""},null,null,null,null,{"$f":"IF($M$3=6,VLOOKUP('Poule de 6'!$A$13,raccourci_club,2,FALSE),\"\")","v":""},null,{"$f":"IF($M$3=6,VLOOKUP('Poule de 6'!$A$16,raccourci_club,2,FALSE),\"\")","v":""},null,{"$f":"IF($M$3=6,VLOOKUP('Poule de 6'!$A$19,raccourci_club,2,FALSE),\"\")","v":""},null,null,null,null,null,6,5,4,"BILLARD CLUB LEXOVIEN","LISIEUX"]
[null,null,null,null,{"$f":"IF($M$3=5,'Poule de 6'!A21,\"\")","v":""},{"$f":"IF(E27=E29,1,0)","v":1},{"$f":"IF($M$3=5,'Poule de 6'!A24,\"\")","v":""},{"$f":"IF(G27=G29,1,0)","v":1},{"$f":"IF($M$3=5,VLOOKUP('Poule de 6'!A13,raccourci_club,2,FALSE),\"\")","v":""},null,null,null,null,{"$f":"IF($M$3=6,'Poule de 6'!$A$27,\"\")","v":""},{"$f":"IF(N27=N29,1,0)","v":1},{"$f":"IF($M$3=6,'Poule de 6'!$A$24,\"\")","v":""},{"$f":"IF(P27=P29,1,0)","v":1},{"$f":"IF($M$3=6,'Poule de 6'!$A$21,\"\")","v":""},{"$f":"IF(R27=R29,1,0)","v":1},{"$f":"SUM(O28,Q28,S28)","v":3},null,null,null,null,null,null,"BILLARD CLUB OSSELIEN","OISSEL"]
[null,null,null,null,{"$f":"IF($M$3=5,VLOOKUP('Poule de 6'!A22,raccourci_club,2,FALSE),\"\")","v":""},null,{"$f":"IF($M$3=5,VLOOKUP('Poule de 6'!A25,raccourci_club,2,FALSE),\"\")","v":""},null,{"$f":"SUM(F28,H28)","v":2},null,null,null,null,{"$f":"IF($M$3=6,VLOOKUP('Poule de 6'!$A$28,raccourci_club,2,FALSE),\"\")","v":""},null,{"$f":"IF($M$3=6,VLOOKUP('Poule de 6'!$A$25,raccourci_club,2,FALSE),\"\")","v":""},null,{"$f":"IF($M$3=6,VLOOKUP('Poule de 6'!$A$22,raccourci_club,2,FALSE),\"\")","v":""},null,null,null,null,null,null,null,null,"BILLARD CLUB PACEEN","PACY"]
[null,null,null,null,null,null,null,null,null,null,null,null,null,null,null,null,null,null,null,null,null,null,null,null,null,null,"BILLARD CLUB SOTTEVILLAIS","SOTTEVILLE"]
[null,null,null,{"$f":"IF(M3=5,\"Tour n°2\",\"\")","v":""},{"$f":"IF(M3=5,'Poule de 6'!A12,\"\")","v":""},null,{"$f":"IF(M3=5,'Poule de 6'!A15,\"\")","v":""},null,null,null,null,null,{"$f":"IF(M3=6,\"Tour n°2\",\"\")","v":""},{"$f":"IF($M$3=6,'Poule de 6'!$A$15,\"\")","v":""},null,{"$f":"IF($M$3=6,'Poule de 6'!$A$27,\"\")","v":""},null,{"$f":"IF($M$3=6,'Poule de 6'!$A$12,\"\")","v":""},null,null,"1 / 5","2 / 3 ",null,2,6,1,"CLUB ECOLE HAVRAIS DE BILLARD","LE HAVRE"]
[null,null,null,null,{"$f":"IF($M$3=5,VLOOKUP('Poule de 6'!A13,raccourci_club,2,FALSE),\"\")","v":""},null,{"$f":"IF($M$3=5,VLOOKUP('Poule de 6'!A16,raccourci_club,2,FALSE),\"\")","v":""},null,{"$f":"IF(M3=5,'Poule de 6'!A21,\"\")","v":""},null,null,null,null,{"$f":"IF($M$3=6,VLOOKUP('Poule de 6'!$A$16,raccourci_club,2,FALSE),\"\")","v":""},null,{"$f":"IF($M$3=6,VLOOKUP('Poule de 6'!$A$28,raccourci_club,2,FALSE),\"\")","v":""},null,{"$f":"IF($M$3=6,VLOOKUP('Poule de 6'!$A$13,raccourci_club,2,FALSE),\"\")","v":""},null,null,null,null,null,3,4,5,"PATRONAGE LAIQUE ARGENTAN","ARGENTAN"]
[null,null,null,null,{"$f":"IF($M$3=5,'Poule de 6'!A24,\"\")","v":""},{"$f":"IF(E32=E34,1,0)","v":1},{"$f":"IF($M$3=5,'Poule de 6'!A18,\"\")","v":""},{"$f":"IF(G32=G34,1,0)","v":1},{"$f":"IF($M$3=5,VLOOKUP('Poule de 6'!A22,raccourci_club,2,FALSE),\"\")","v":""},null,null,null,null,{"$f":"IF($M$3=6,'Poule de 6'!$A$18,\"\")","v":""},{"$f":"IF(N32=N34,1,0)","v":1},{"$f":"IF($M$3=6,'Poule de 6'!$A$21,\"\")","v":""},{"$f":"IF(P32=P34,1,0)","v":1},{"$f":"IF($M$3=6,'Poule de 6'!$A$24,\"\")","v":""},{"$f":"IF(R32=R34,1,0)","v":1},{"$f":"SUM(O33,Q33,S33)","v":3},null,null,null,null,null,null,"ROUEN BILLARD CLUB","ROUEN"]
[null,null,null,null,{"$f":"IF($M$3=5,VLOOKUP('Poule de 6'!A25,raccourci_club,2,FALSE),\"\")","v":""},null,{"$f":"IF($M$3=5,VLOOKUP('Poule de 6'!A19,raccourci_club,2,FALSE),\"\")","v":""},null,{"$f":"SUM(F33,H33)","v":2},null,null,null,null,{"$f":"IF($M$3=6,VLOOKUP('Poule de 6'!$A$19,raccourci_club,2,FALSE),\"\")","v":""},null,{"$f":"IF($M$3=6,VLOOKUP('Poule de 6'!$A$22,raccourci_club,2,FALSE),\"\")","v":""},null,{"$f":"IF($M$3=6,VLOOKUP('Poule de 6'!$A$25,raccourci_club,2,FALSE),\"\")","v":""},null,null,null,null,null,null,null,null,"Licenciés indépendants 27","IND - 27"]
[null,null,null,null,null,null,null,null,null,null,null,null,null,null,null,null,null,null,null,null,null,null,null,null,null,null,"Licenciés indépendants 76","IND - 76"]
[null,null,null,{"$f":"IF(M3=5,\"Tour n°3\",\"\")","v":""},{"$f":"IF($M$3=5,'Poule de 6'!A18,\"\")","v":""},null,{"$f":"IF(M3=5,'Poule de 6'!A12,\"\")","v":""},null,null,null,null,null,{"$f":"IF(M3=6,\"Tour n°3\",\"\")","v":""},{"$f":"IF($M$3=6,'Poule de 6'!$A$12,\"\")","v":""},null,{"$f":"IF($M$3=6,'Poule de 6'!$A$24,\"\")","v":""},null,{"$f":"IF($M$3=6,'Poule de 6'!$A$27,\"\")","v":""},null,null,"3 / 5","1 / 4",null,1,5,6,"Licenciés indépendants 14","IND - 14"]
[null,null,null,null,{"$f":"IF($M$3=5,VLOOKUP('Poule de 6'!A19,raccourci_club,2,FALSE),\"\")","v":""},null,{"$f":"IF($M$3=5,VLOOKUP('Poule de 6'!A13,raccourci_club,2,FALSE),\"\")","v":""},null,{"$f":"IF(M3=5,'Poule de 6'!A15,\"\")","v":""},null,null,null,null,{"$f":"IF($M$3=6,VLOOKUP('Poule de 6'!$A$13,raccourci_club,2,FALSE),\"\")","v":""},null,{"$f":"IF($M$3=6,VLOOKUP('Poule de 6'!$A$25,raccourci_club,2,FALSE),\"\")","v":""},null,{"$f":"IF($M$3=6,VLOOKUP('Poule de 6'!$A$28,raccourci_club,2,FALSE),\"\")","v":""},null,null,null,null,null,4,3,2,"Licenciés indépendants 50","IND - 50"]
[null,null,null,null,{"$f":"IF($M$3=5,'Poule de 6'!A24,\"\")","v":""},{"$f":"IF(E37=E39,1,0)","v":1},{"$f":"IF(M3=5,'Poule de 6'!A21,\"\")","v":""},{"$f":"IF(G37=G39,1,0)","v":1},{"$f":"IF($M$3=5,VLOOKUP('Poule de 6'!A16,raccourci_club,2,FALSE),\"\")","v":""},null,null,null,null,{"$f":"IF($M$3=6,'Poule de 6'!$A$21,\"\")","v":""},{"$f":"IF(N37=N39,1,0)","v":1},{"$f":"IF($M$3=6,'Poule de 6'!$A$18,\"\")","v":""},{"$f":"IF(P37=P39,1,0)","v":1},{"$f":"IF($M$3=6,'Poule de 6'!$A$15,\"\")","v":""},{"$f":"IF(R37=R39,1,0)","v":1},{"$f":"SUM(O38,Q38,S38)","v":3},null,null,null,null,null,null,"Licenciés indépendants 61","IND - 61"]
[null,null,null,null,{"$f":"IF($M$3=5,VLOOKUP('Poule de 6'!A25,raccourci_club,2,FALSE),\"\")","v":""},null,{"$f":"IF($M$3=5,VLOOKUP('Poule de 6'!A22,raccourci_club,2,FALSE),\"\")","v":""},null,{"$f":"SUM(F38,H38)","v":2},null,null,null,null,{"$f":"IF($M$3=6,VLOOKUP('Poule de 6'!$A$22,raccourci_club,2,FALSE),\"\")","v":""},null,{"$f":"IF($M$3=6,VLOOKUP('Poule de 6'!$A$19,raccourci_club,2,FALSE),\"\")","v":""},null,{"$f":"IF($M$3=6,VLOOKUP('Poule de 6'!$A$16,raccourci_club,2,FALSE),\"\")","v":""}]
[]
[null,null,null,{"$f":"IF(M3=5,\"Tour n°4\",\"\")","v":""},{"$f":"IF($M$3=5,'Poule de 6'!A15,\"\")","v":""},null,{"$f":"IF(M3=5,'Poule de 6'!A12,\"\")","v":""},null,null,null,null,null,{"$f":"IF(M3=6,\"Tour n°4\",\"\")","v":""},{"$f":"IF($M$3=6,'Poule de 6'!$A$24,\"\")","v":""},null,{"$f":"IF($M$3=6,'Poule de 6'!$A$12,\"\")","v":""},null,{"$f":"IF($M$3=6,'Poule de 6'!$A$21,\"\")","v":""},null,null,"2 / 4","1 / 3",null,5,1,4]
[null,null,null,null,{"$f":"IF($M$3=5,VLOOKUP('Poule de 6'!A16,raccourci_club,2,FALSE),\"\")","v":""},null,{"$f":"IF($M$3=5,VLOOKUP('Poule de 6'!A13,raccourci_club,2,FALSE),\"\")","v":""},null,{"$f":"IF(M3=5,'Poule de 6'!A24,\"\")","v":""},null,null,null,null,{"$f":"IF($M$3=6,VLOOKUP('Poule de 6'!$A$25,raccourci_club,2,FALSE),\"\")","v":""},null,{"$f":"IF($M$3=6,VLOOKUP('Poule de 6'!$A$13,raccourci_club,2,FALSE),\"\")","v":""},null,{"$f":"IF($M$3=6,VLOOKUP('Poule de 6'!$A$22,raccourci_club,2,FALSE),\"\")","v":""},null,null,null,null,null,6,3,2]
[null,null,null,null,{"$f":"IF($M$3=5,'Poule de 6'!A21,\"\")","v":""},{"$f":"IF(E42=E44,1,0)","v":1},{"$f":"IF($M$3=5,'Poule de 6'!A18,\"\")","v":""},{"$f":"IF(G42=G44,1,0)","v":1},{"$f":"IF($M$3=5,VLOOKUP('Poule de 6'!A25,raccourci_club,2,FALSE),\"\")","v":""},null,null,null,null,{"$f":"IF($M$3=6,'Poule de 6'!$A$27,\"\")","v":""},{"$f":"IF(N42=N44,1,0)","v":1},{"$f":"IF($M$3=6,'Poule de 6'!$A$18,\"\")","v":""},{"$f":"IF(P42=P44,1,0)","v":1},{"$f":"IF($M$3=6,'Poule de 6'!$A$15,\"\")","v":""},{"$f":"IF(R42=R44,1,0)","v":1},{"$f":"SUM(O43,Q43,S43)","v":3}]
[null,null,null,null,{"$f":"IF($M$3=5,VLOOKUP('Poule de 6'!A22,raccourci_club,2,FALSE),\"\")","v":""},null,{"$f":"IF($M$3=5,VLOOKUP('Poule de 6'!A19,raccourci_club,2,FALSE),\"\")","v":""},null,{"$f":"SUM(F43,H43)","v":2},null,null,null,null,{"$f":"IF($M$3=6,VLOOKUP('Poule de 6'!$A$28,raccourci_club,2,FALSE),\"\")","v":""},null,{"$f":"IF($M$3=6,VLOOKUP('Poule de 6'!$A$19,raccourci_club,2,FALSE),\"\")","v":""},null,{"$f":"IF($M$3=6,VLOOKUP('Poule de 6'!$A$16,raccourci_club,2,FALSE),\"\")","v":""}]
[]
[null,null,null,{"$f":"IF(M3=5,\"Tour n°5\",\"\")","v":""},{"$f":"IF($M$3=5,'Poule de 6'!A12,\"\")","v":""},null,{"$f":"IF(M3=5,'Poule de 6'!A21,\"\")","v":""},null,null,null,null,null,{"$f":"IF(M3=6,\"Tour n°5\",\"\")","v":""},{"$f":"IF($M$3=6,'Poule de 6'!$A$21,\"\")","v":""},null,{"$f":"IF($M$3=6,'Poule de 6'!$A$12,\"\")","v":""},null,{"$f":"IF($M$3=6,'Poule de 6'!$A$18,\"\")","v":""},null,null,"1 / 2","4 / 5",null,4,1,3]
[null,null,null,null,{"$f":"IF($M$3=5,VLOOKUP('Poule de 6'!A13,raccourci_club,2,FALSE),\"\")","v":""},null,{"$f":"IF($M$3=5,VLOOKUP('Poule de 6'!A22,raccourci_club,2,FALSE),\"\")","v":""},null,{"$f":"IF($M$3=5,'Poule de 6'!A18,\"\")","v":""},null,null,null,null,{"$f":"IF($M$3=6,VLOOKUP('Poule de 6'!$A$22,raccourci_club,2,FALSE),\"\")","v":""},null,{"$f":"IF($M$3=6,VLOOKUP('Poule de 6'!$A$13,raccourci_club,2,FALSE),\"\")","v":""},null,{"$f":"IF($M$3=6,VLOOKUP('Poule de 6'!$A$19,raccourci_club,2,FALSE),\"\")","v":""},null,null,null,null,null,5,2,6]
[null,null,null,null,{"$f":"IF(M3=5,'Poule de 6'!A15,\"\")","v":""},{"$f":"IF(E47=E49,1,0)","v":1},{"$f":"IF($M$3=5,'Poule de 6'!A24,\"\")","v":""},{"$f":"IF(G47=G49,1,0)","v":1},{"$f":"IF($M$3=5,VLOOKUP('Poule de 6'!A19,raccourci_club,2,FALSE),\"\")","v":""},null,null,null,null,{"$f":"IF($M$3=6,'Poule de 6'!$A$24,\"\")","v":""},{"$f":"IF(N47=N49,1,0)","v":1},{"$f":"IF($M$3=6,'Poule de 6'!$A$15,\"\")","v":""},{"$f":"IF(P47=P49,1,0)","v":1},{"$f":"IF($M$3=6,'Poule de 6'!$A$27,\"\")","v":""},{"$f":"IF(R47=R49,1,0)","v":1},{"$f":"SUM(O48,Q48,S48)","v":3}]
[null,null,null,null,{"$f":"IF($M$3=5,VLOOKUP('Poule de 6'!A16,raccourci_club,2,FALSE),\"\")","v":""},null,{"$f":"IF($M$3=5,VLOOKUP('Poule de 6'!A25,raccourci_club,2,FALSE),\"\")","v":""},null,{"$f":"SUM(F48,H48)","v":2},null,null,null,null,{"$f":"IF($M$3=6,VLOOKUP('Poule de 6'!$A$25,raccourci_club,2,FALSE),\"\")","v":""},null,{"$f":"IF($M$3=6,VLOOKUP('Poule de 6'!$A$16,raccourci_club,2,FALSE),\"\")","v":""},null,{"$f":"IF($M$3=6,VLOOKUP('Poule de 6'!$A$28,raccourci_club,2,FALSE),\"\")","v":""}]
[null,null,null,null,null,null,null,null,null,null,null,null,null,null,null,null,null,null,null,null,null,null,"Poule de 5 - Tours de jeu"]
[null,null,null,null,"POULE de 5 - Ordre des tours de jeu",null,null,null,null,null,null,null,null,null,null,"POULE de 6 - Ordre des tours de jeu",null,null,null,null,null,null,{"$f":"IF(Z51<>\"\",RANK(Z51,Z$51:$Z$60,TRUE),\"\")","v":""},1,{"$f":"IF(I29>0,D26,\"\")","v":""},{"$f":"IF(Y51<>\"\",X51,\"\")","v":""}]
[null,null,null,null,null,null,null,null,null,null,null,null,null,null,null,null,null,null,null,null,null,null,{"$f":"IF(Z52<>\"\",RANK(Z52,Z$51:$Z$60,TRUE),\"\")","v":""},2,{"$f":"IF(I34>0,D31,\"\")","v":""},{"$f":"IF(Y52<>\"\",X52,\"\")","v":""}]
[null,null,null,null,1,null,{"$f":"IFERROR(VLOOKUP(1,ordre_des_tours_p5,3,FALSE),\"\")","v":""},null,null,null,null,null,null,null,null,1,null,{"$f":"IFERROR(VLOOKUP(1,ordre_des_tours_p6,3,FALSE),\"\")","v":""},null,null,null,null,{"$f":"IF(Z53<>\"\",RANK(Z53,Z$51:$Z$60,TRUE),\"\")","v":""},3,{"$f":"IF(I39>0,D36,\"\")","v":""},""]
[null,null,null,null,2,null,{"$f":"IFERROR(VLOOKUP(2,ordre_des_tours_p5,3,FALSE),\"\")","v":""},null,null,null,null,null,null,null,null,2,null,{"$f":"IFERROR(VLOOKUP(2,ordre_des_tours_p6,3,FALSE),\"\")","v":""},null,null,null,null,{"$f":"IF(Z54<>\"\",RANK(Z54,Z$51:$Z$60,TRUE),\"\")","v":""},4,{"$f":"IF(I44>0,D41,\"\")","v":""},""]
[null,null,null,null,3,null,{"$f":"IFERROR(VLOOKUP(3,ordre_des_tours_p5,3,FALSE),\"\")","v":""},null,null,null,null,null,null,null,null,3,null,{"$f":"IFERROR(VLOOKUP(3,ordre_des_tours_p6,3,FALSE),\"\")","v":""},null,null,null,null,{"$f":"IF(Z55<>\"\",RANK(Z55,Z$51:$Z$60,TRUE),\"\")","v":""},5,{"$f":"IF(I49>0,D46,\"\")","v":""},""]
[null,null,null,null,4,null,{"$f":"IFERROR(VLOOKUP(4,ordre_des_tours_p5,3,FALSE),\"\")","v":""},null,null,null,null,null,null,null,null,4,null,{"$f":"IFERROR(VLOOKUP(4,ordre_des_tours_p6,3,FALSE),\"\")","v":""},null,null,null,null,{"$f":"IF(Z56<>\"\",RANK(Z56,Z$51:$Z$60,TRUE),\"\")","v":""},6,{"$f":"IF(I29=0,D26,\"\")","v":""},""]
[null,null,null,null,5,null,{"$f":"IFERROR(VLOOKUP(5,ordre_des_tours_p5,3,FALSE),\"\")","v":""},null,null,null,null,null,null,null,null,5,null,{"$f":"IFERROR(VLOOKUP(5,ordre_des_tours_p6,3,FALSE),\"\")","v":""},null,null,null,null,{"$f":"IF(Z57<>\"\",RANK(Z57,Z$51:$Z$60,TRUE),\"\")","v":""},7,{"$f":"IF(I34=0,D31,\"\")","v":""},""]
[null,null,null,null,null,null,null,null,null,null,null,null,null,null,null,null,null,null,null,null,null,null,{"$f":"IF(Z58<>\"\",RANK(Z58,Z$51:$Z$60,TRUE),\"\")","v":""},8,{"$f":"IF(I39=0,D36,\"\")","v":""},""]
[null,null,null,null,null,null,null,null,null,null,null,null,null,null,null,null,null,null,null,null,null,null,{"$f":"IF(Z59<>\"\",RANK(Z59,Z$51:$Z$60,TRUE),\"\")","v":""},9,{"$f":"IF(I44=0,D41,\"\")","v":""},""]
[null,null,null,null,null,null,null,null,null,null,null,null,null,null,null,null,null,null,null,null,null,null,{"$f":"IF(Z60<>\"\",RANK(Z60,Z$51:$Z$60,TRUE),\"\")","v":""},10,{"$f":"IF(I49=0,D46,\"\")","v":""},""]
[]
[null,null,null,null,null,null,null,null,null,null,null,null,null,null,null,null,null,null,null,null,null,null,"Poule de 6 - Tours de jeu"]
[null,null,null,null,null,null,null,null,null,null,null,null,null,null,null,null,null,null,null,null,null,null,{"$f":"IF(Z63<>\"\",RANK(Z63,Z$63:$Z$72,TRUE),\"\")","v":""},1,{"$f":"IF(T28>0,M26,\"\")","v":""},{"$f":"IF(Y63<>\"\",X63,\"\")","v":""}]
[null,null,null,null,null,null,null,null,null,null,null,null,null,null,null,null,null,null,null,null,null,null,{"$f":"IF(Z64<>\"\",RANK(Z64,Z$63:$Z$72,TRUE),\"\")","v":""},2,{"$f":"IF(T33>0,M31,\"\")","v":""},{"$f":"IF(Y64<>\"\",X64,\"\")","v":""}]
[null,null,null,null,null,null,null,null,null,null,null,null,null,null,null,null,null,null,null,null,null,null,{"$f":"IF(Z65<>\"\",RANK(Z65,Z$63:$Z$72,TRUE),\"\")","v":""},3,{"$f":"IF(T38>0,M36,\"\")","v":""},""]
[null,null,null,null,null,null,null,null,null,null,null,null,null,null,null,null,null,null,null,null,null,null,{"$f":"IF(Z66<>\"\",RANK(Z66,Z$63:$Z$72,TRUE),\"\")","v":""},4,{"$f":"IF(T43>0,M41,\"\")","v":""},""]
[null,null,null,null,null,null,null,null,null,null,null,null,null,null,null,null,null,null,null,null,null,null,{"$f":"IF(Z67<>\"\",RANK(Z67,Z$63:$Z$72,TRUE),\"\")","v":""},5,{"$f":"IF(T48>0,M46,\"\")","v":""},""]
[null,null,null,null,null,null,null,null,null,null,null,null,null,null,null,null,null,null,null,null,null,null,{"$f":"IF(Z68<>\"\",RANK(Z68,Z$63:$Z$72,TRUE),\"\")","v":""},6,{"$f":"IF(T28=0,M26,\"\")","v":""},""]
[null,null,null,null,null,null,null,null,null,null,null,null,null,null,null,null,null,null,null,null,null,null,{"$f":"IF(Z69<>\"\",RANK(Z69,Z$63:$Z$72,TRUE),\"\")","v":""},7,{"$f":"IF(T33=0,M31,\"\")","v":""},""]
[null,null,null,null,null,null,null,null,null,null,null,null,null,null,null,null,null,null,null,null,null,null,{"$f":"IF(Z70<>\"\",RANK(Z70,Z$63:$Z$72,TRUE),\"\")","v":""},8,{"$f":"IF(T38=0,M36,\"\")","v":""},""]
[null,null,null,null,null,null,null,null,null,null,null,null,null,null,null,null,null,null,null,null,null,null,{"$f":"IF(Z71<>\"\",RANK(Z71,Z$63:$Z$72,TRUE),\"\")","v":""},9,{"$f":"IF(T43=0,M41,\"\")","v":""},""]
[null,null,null,null,null,null,null,null,null,null,null,null,null,null,null,null,null,null,null,null,null,null,{"$f":"IF(Z72<>\"\",RANK(Z72,Z$63:$Z$72,TRUE),\"\")","v":""},10,{"$f":"IF(T48=0,M46,\"\")","v":""},""]

{"sheet":"Affiche_des_tours","index":3,"n_rows":33,"n_cols":4,"rows_kept":33,"cut":false,"hidden":false,"merged":[[32,0,32,3],[26,0,29,0],[2,1,2,3],[0,0,0,3],[6,0,9,0],[11,0,14,0],[16,0,19,0],[21,0,24,0]]}
[]
[]
[null,"TOURS DE JEU"]
[]
[null,"Billard 1","Billard 2","Billard 3"]
[]
["Tour n°1"]
[]
[]
[]
[]
["Tour n°2"]
[]
[]
[]
[]
["Tour n°3"]
[]
[]
[]
[]
["Tour n°4"]
[]
[]
[]
[]
["Tour n°5"]
[]
[]
[]
[]
[]
["Ce tableau est à renseigner (éventuellement) manuellement"]

{"sheet":"Saisie FFB","index":4,"n_rows":27,"n_cols":13,"rows_kept":27,"cut":false,"hidden":false,"merged":[[4,1,4,2],[4,3,4,7],[0,0,0,12],[2,1,2,2],[2,3,2,7],[3,1,3,2],[3,3,3,7],[9,1,9,6],[9,7,9,12],[6,3,6,7],[26,7,27,7],[5,1,5,2],[5,3,5,7],[6,1,6,2],[7,3,7,7],[7,1,7,2]]}
["Tableau d'aide à la saisie des résultats sur les sites FFB"]
["Compétition"]
[null,"Lieu :   ",null,{"$f":"'Poule de 6'!G4","v":0}]
[null,"Date :   ",null,{"$f":"'Poule de 6'!E10","v":"00:00:00"}]
[null,"Mode de jeu :   ",null,{"$f":"'Poule de 6'!W9","v":0}]
[null,"Catégorie :   ",null,{"$f":"'Poule de 6'!K10","v":0}]
[null,"Tour :   ",null,{"$f":"'Poule de 6'!E9","v":0}]
[null,"Format billard :   ",null,{"$f":"'Poule de 6'!Q10","v":0}]
[]
[null,"Joueur 1",null,null,null,null,null,"Joueur 2"]
["N° match","Nom","Licence","Points","Reprises","Série","Points de\nmatch","Nom","Licence","Points","Reprises","Série","Points de\nmatch"]
[1,{"$f":"IF('Poule de 6'!A12<>\"\",'Poule de 6'!A12,\"\")","v":""},{"$f":"IFERROR(VLOOKUP(B12,coordonnees_joueurs,3,FALSE),\"\")","v":""},{"$f":"IF(j1r1<>\"\",j1r1,\"\")","v":""},{"$f":"IF(D12<>\"\",OFFSET(j1r1,0,2,1,1),\"\")","v":""},{"$f":"IF(D12<>\"\",OFFSET(j1r1,2,0,1,1),\"\")","v":""},{"$f":"IF(D12<>\"\",OFFSET(j1r1,1,1,1,1),\"\")","v":""},{"$f":"'Poule de 6'!E11","v":""},{"$f":"IFERROR(VLOOKUP(H12,coordonnees_joueurs,3,FALSE),\"\")","v":""},{"$f":"IF(j2r1<>\"\",j2r1,\"\")","v":""},{"$f":"IF(J12<>\"\",OFFSET(j2r1,0,2,1,1),\"\")","v":""},{"$f":"IF(J12<>\"\",OFFSET(j2r1,2,0,1,1),\"\")","v":""},{"$f":"IF(J12<>\"\",OFFSET(j2r1,1,1,1,1),\"\")","v":""}]
[2,{"$f":"IF('Poule de 6'!A12<>\"\",'Poule de 6'!A12,\"\")","v":""},"",{"$f":"IF(j1r2<>\"\",j1r2,\"\")","v":""},{"$f":"IF(D13<>\"\",OFFSET(j1r2,0,2,1,1),\"\")","v":""},{"$f":"IF(D13<>\"\",OFFSET(j1r2,2,0,1,1),\"\")","v":""},{"$f":"IF(D13<>\"\",OFFSET(j1r2,1,1,1,1),\"\")","v":""},{"$f":"'Poule de 6'!H11","v":""},"",{"$f":"IF(j3r1<>\"\",j3r1,\"\")","v":""},{"$f":"IF(J13<>\"\",OFFSET(j3r1,0,2,1,1),\"\")","v":""},{"$f":"IF(J13<>\"\",OFFSET(j3r1,2,0,1,1),\"\")","v":""},{"$f":"IF(J13<>\"\",OFFSET(j3r1,1,1,1,1),\"\")","v":""}]
[3,{"$f":"IF('Poule de 6'!A15<>\"\",'Poule de 6'!A15,\"\")","v":""},"",{"$f":"IF(j2r2<>\"\",j2r2,\"\")","v":""},{"$f":"IF(D14<>\"\",OFFSET(j2r2,0,2,1,1),\"\")","v":""},{"$f":"IF(D14<>\"\",OFFSET(j2r2,2,0,1,1),\"\")","v":""},{"$f":"IF(D14<>\"\",OFFSET(j2r2,1,1,1,1),\"\")","v":""},{"$f":"'Poule de 6'!H11","v":""},"",{"$f":"IF(j3r2<>\"\",j3r2,\"\")","v":""},{"$f":"IF(J14<>\"\",OFFSET(j3r2,0,2,1,1),\"\")","v":""},{"$f":"IF(J14<>\"\",OFFSET(j3r2,2,0,1,1),\"\")","v":""},{"$f":"IF(J14<>\"\",OFFSET(j3r2,1,1,1,1),\"\")","v":""}]
[4,{"$f":"IF('Poule de 6'!A21<>\"\",'Poule de 6'!A12,\"\")","v":""},"",{"$f":"IF(j1r3<>\"\",j1r3,\"\")","v":""},{"$f":"IF(D15<>\"\",OFFSET(j1r3,0,2,1,1),\"\")","v":""},{"$f":"IF(D15<>\"\",OFFSET(j1r3,2,0,1,1),\"\")","v":""},{"$f":"IF(D15<>\"\",OFFSET(j1r3,1,1,1,1),\"\")","v":""},{"$f":"IF('Poule de 6'!A21<>\"\",'Poule de 6'!A21,\"\")","v":""},"",{"$f":"IF(j4r1<>\"\",j4r1,\"\")","v":""},{"$f":"IF(J15<>\"\",OFFSET(j4r1,0,2,1,1),\"\")","v":""},{"$f":"IF(J15<>\"\",OFFSET(j4r1,2,0,1,1),\"\")","v":""},{"$f":"IF(J15<>\"\",OFFSET(j4r1,1,1,1,1),\"\")","v":""}]
[5,{"$f":"IF('Poule de 6'!A21<>\"\",'Poule de 6'!A15,\"\")","v":""},"",{"$f":"IF(j2r3<>\"\",j2r3,\"\")","v":""},{"$f":"IF(D16<>\"\",OFFSET(j2r3,0,2,1,1),\"\")","v":""},{"$f":"IF(D16<>\"\",OFFSET(j2r3,2,0,1,1),\"\")","v":""},{"$f":"IF(D16<>\"\",OFFSET(j2r3,1,1,1,1),\"\")","v":""},{"$f":"IF('Poule de 6'!A21<>\"\",'Poule de 6'!A21,\"\")","v":""},"",{"$f":"IF(j4r2<>\"\",j4r2,\"\")","v":""},{"$f":"IF(J16<>\"\",OFFSET(j4r2,0,2,1,1),\"\")","v":""},{"$f":"IF(J16<>\"\",OFFSET(j4r2,2,0,1,1),\"\")","v":""},{"$f":"IF(J16<>\"\",OFFSET(j4r2,1,1,1,1),\"\")","v":""}]
[6,{"$f":"IF('Poule de 6'!A21<>\"\",'Poule de 6'!A18,\"\")","v":""},"",{"$f":"IF(j3r3<>\"\",j3r3,\"\")","v":""},{"$f":"IF(D17<>\"\",OFFSET(j3r3,0,2,1,1),\"\")","v":""},{"$f":"IF(D17<>\"\",OFFSET(j3r3,2,0,1,1),\"\")","v":""},{"$f":"IF(D17<>\"\",OFFSET(j3r3,1,1,1,1),\"\")","v":""},{"$f":"IF('Poule de 6'!A21<>\"\",'Poule de 6'!A21,\"\")","v":""},"",{"$f":"IF(j4r3<>\"\",j4r3,\"\")","v":""},{"$f":"IF(J17<>\"\",OFFSET(j4r3,0,2,1,1),\"\")","v":""},{"$f":"IF(J17<>\"\",OFFSET(j4r3,2,0,1,1),\"\")","v":""},{"$f":"IF(J17<>\"\",OFFSET(j4r3,1,1,1,1),\"\")","v":""}]
[7,{"$f":"IF('Poule de 6'!A24<>\"\",'Poule de 6'!A12,\"\")","v":""},"",{"$f":"IF(j1r4<>\"\",j1r4,\"\")","v":""},{"$f":"IF(D18<>\"\",OFFSET(j1r4,0,2,1,1),\"\")","v":""},{"$f":"IF(D18<>\"\",OFFSET(j1r4,2,0,1,1),\"\")","v":""},{"$f":"IF(D18<>\"\",OFFSET(j1r4,1,1,1,1),\"\")","v":""},{"$f":"IF('Poule de 6'!A24<>\"\",'Poule de 6'!A24,\"\")","v":""},"",{"$f":"IF(j5r1<>\"\",j5r1,\"\")","v":""},{"$f":"IF(J18<>\"\",OFFSET(j5r1,0,2,1,1),\"\")","v":""},{"$f":"IF(J18<>\"\",OFFSET(j5r1,2,0,1,1),\"\")","v":""},{"$f":"IF(J18<>\"\",OFFSET(j5r1,1,1,1,1),\"\")","v":""}]
[8,{"$f":"IF('Poule de 6'!A24<>\"\",'Poule de 6'!A15,\"\")","v":""},"",{"$f":"IF(j2r4<>\"\",j2r4,\"\")","v":""},{"$f":"IF(D19<>\"\",OFFSET(j2r4,0,2,1,1),\"\")","v":""},{"$f":"IF(D19<>\"\",OFFSET(j2r4,2,0,1,1),\"\")","v":""},{"$f":"IF(D19<>\"\",OFFSET(j2r4,1,1,1,1),\"\")","v":""},{"$f":"IF('Poule de 6'!A24<>\"\",'Poule de 6'!A24,\"\")","v":""},"",{"$f":"IF(j5r2<>\"\",j5r2,\"\")","v":""},{"$f":"IF(J19<>\"\",OFFSET(j5r2,0,2,1,1),\"\")","v":""},{"$f":"IF(J19<>\"\",OFFSET(j5r2,2,0,1,1),\"\")","v":""},{"$f":"IF(J19<>\"\",OFFSET(j5r2,1,1,1,1),\"\")","v":""}]
[9,{"$f":"IF('Poule de 6'!A24<>\"\",'Poule de 6'!A18,\"\")","v":""},"",{"$f":"IF(j3r4<>\"\",j3r4,\"\")","v":""},{"$f":"IF(D20<>\"\",OFFSET(j3r4,0,2,1,1),\"\")","v":""},{"$f":"IF(D20<>\"\",OFFSET(j3r4,2,0,1,1),\"\")","v":""},{"$f":"IF(D20<>\"\",OFFSET(j3r4,1,1,1,1),\"\")","v":""},{"$f":"IF('Poule de 6'!A24<>\"\",'Poule de 6'!A24,\"\")","v":""},"",{"$f":"IF(j5r3<>\"\",j5r3,\"\")","v":""},{"$f":"IF(J20<>\"\",OFFSET(j5r3,0,2,1,1),\"\")","v":""},{"$f":"IF(J20<>\"\",OFFSET(j5r3,2,0,1,1),\"\")","v":""},{"$f":"IF(J20<>\"\",OFFSET(j5r3,1,1,1,1),\"\")","v":""}]
[10,{"$f":"IF('Poule de 6'!A24<>\"\",'Poule de 6'!A21,\"\")","v":""},"",{"$f":"IF(j4r4<>\"\",j4r4,\"\")","v":""},{"$f":"IF(D21<>\"\",OFFSET(j4r4,0,2,1,1),\"\")","v":""},{"$f":"IF(D21<>\"\",OFFSET(j4r4,2,0,1,1),\"\")","v":""},{"$f":"IF(D21<>\"\",OFFSET(j4r4,1,1,1,1),\"\")","v":""},{"$f":"IF('Poule de 6'!A24<>\"\",'Poule de 6'!A24,\"\")","v":""},"",{"$f":"IF(j5r4<>\"\",j5r4,\"\")","v":""},{"$f":"IF(J21<>\"\",OFFSET(j5r4,0,2,1,1),\"\")","v":""},{"$f":"IF(J21<>\"\",OFFSET(j5r4,2,0,1,1),\"\")","v":""},{"$f":"IF(J21<>\"\",OFFSET(j5r4,1,1,1,1),\"\")","v":""}]
[11,{"$f":"IF('Poule de 6'!A27<>\"\",'Poule de 6'!A12,\"\")","v":""},"",{"$f":"IF(j1r5<>\"\",j1r5,\"\")","v":""},{"$f":"IF(D22<>\"\",OFFSET(j1r5,0,2,1,1),\"\")","v":""},{"$f":"IF(D22<>\"\",OFFSET(j1r5,2,0,1,1),\"\")","v":""},{"$f":"IF(D22<>\"\",OFFSET(j1r5,1,1,1,1),\"\")","v":""},{"$f":"IF('Poule de 6'!A27<>\"\",'Poule de 6'!A27,\"\")","v":""},"",{"$f":"IF(j6r1<>\"\",j6r1,\"\")","v":""},{"$f":"IF(J22<>\"\",OFFSET(j6r1,0,2,1,1),\"\")","v":""},{"$f":"IF(J22<>\"\",OFFSET(j6r1,2,0,1,1),\"\")","v":""},{"$f":"IF(J22<>\"\",OFFSET(j6r1,1,1,1,1),\"\")","v":""}]
[12,{"$f":"IF('Poule de 6'!A27<>\"\",'Poule de 6'!A15,\"\")","v":""},"",{"$f":"IF(j2r5<>\"\",j2r5,\"\")","v":""},{"$f":"IF(D23<>\"\",OFFSET(j2r5,0,2,1,1),\"\")","v":""},{"$f":"IF(D23<>\"\",OFFSET(j2r5,2,0,1,1),\"\")","v":""},{"$f":"IF(D23<>\"\",OFFSET(j2r5,1,1,1,1),\"\")","v":""},{"$f":"IF('Poule de 6'!A27<>\"\",'Poule de 6'!A27,\"\")","v":""},"",{"$f":"IF(j6r2<>\"\",j6r2,\"\")","v":""},{"$f":"IF(J23<>\"\",OFFSET(j6r2,0,2,1,1),\"\")","v":""},{"$f":"IF(J23<>\"\",OFFSET(j6r2,2,0,1,1),\"\")","v":""},{"$f":"IF(J23<>\"\",OFFSET(j6r2,1,1,1,1),\"\")","v":""}]
[13,{"$f":"IF('Poule de 6'!A27<>\"\",'Poule de 6'!A18,\"\")","v":""},"",{"$f":"IF(j3r5<>\"\",j3r5,\"\")","v":""},{"$f":"IF(D24<>\"\",OFFSET(j3r5,0,2,1,1),\"\")","v":""},{"$f":"IF(D24<>\"\",OFFSET(j3r5,2,0,1,1),\"\")","v":""},{"$f":"IF(D24<>\"\",OFFSET(j3r5,1,1,1,1),\"\")","v":""},{"$f":"IF('Poule de 6'!A27<>\"\",'Poule de 6'!A27,\"\")","v":""},"",{"$f":"IF(j6r3<>\"\",j6r3,\"\")","v":""},{"$f":"IF(J24<>\"\",OFFSET(j6r3,0,2,1,1),\"\")","v":""},{"$f":"IF(J24<>\"\",OFFSET(j6r3,2,0,1,1),\"\")","v":""},{"$f":"IF(J24<>\"\",OFFSET(j6r3,1,1,1,1),\"\")","v":""}]
[14,{"$f":"IF('Poule de 6'!A27<>\"\",'Poule de 6'!A21,\"\")","v":""},"",{"$f":"IF(j4r5<>\"\",j4r5,\"\")","v":""},{"$f":"IF(D25<>\"\",OFFSET(j4r5,0,2,1,1),\"\")","v":""},{"$f":"IF(D25<>\"\",OFFSET(j4r5,2,0,1,1),\"\")","v":""},{"$f":"IF(D25<>\"\",OFFSET(j4r5,1,1,1,1),\"\")","v":""},{"$f":"IF('Poule de 6'!A27<>\"\",'Poule de 6'!A27,\"\")","v":""},"",{"$f":"IF(j6r4<>\"\",j6r4,\"\")","v":""},{"$f":"IF(J25<>\"\",OFFSET(j6r4,0,2,1,1),\"\")","v":""},{"$f":"IF(J25<>\"\",OFFSET(j6r4,2,0,1,1),\"\")","v":""},{"$f":"IF(J25<>\"\",OFFSET(j6r4,1,1,1,1),\"\")","v":""}]
[15,{"$f":"IF('Poule de 6'!A27<>\"\",'Poule de 6'!A24,\"\")","v":""},"",{"$f":"IF(j5r5<>\"\",j5r5,\"\")","v":""},{"$f":"IF(D26<>\"\",OFFSET(j5r5,0,2,1,1),\"\")","v":""},{"$f":"IF(D26<>\"\",OFFSET(j5r5,2,0,1,1),\"\")","v":""},{"$f":"IF(D26<>\"\",OFFSET(j5r5,1,1,1,1),\"\")","v":""},{"$f":"IF('Poule de 6'!A27<>\"\",'Poule de 6'!A27,\"\")","v":""},"",{"$f":"IF(j6r5<>\"\",j6r5,\"\")","v":""},{"$f":"IF(J26<>\"\",OFFSET(j6r5,0,2,1,1),\"\")","v":""},{"$f":"IF(J26<>\"\",OFFSET(j6r5,2,0,1,1),\"\")","v":""},{"$f":"IF(J26<>\"\",OFFSET(j6r5,1,1,1,1),\"\")","v":""}]
["Les données en bleu sont à saisir"]